{"text_format":"3","workbook":"xlsx","n_sheets":5,"sheets":["原版","Sheet3","挂网附件","不达标企业","Sheet2"],"not_rendered":{"defined_names":3,"comments":2},"read":"whole","date_system":"1900"}

{"sheet":"原版","index":0,"n_rows":316,"n_cols":11,"rows_kept":316,"hidden":true,"merged":[[0,0,0,1],[1,0,1,8],[3,0,4,0],[3,1,4,1],[3,5,4,5],[3,6,4,6],[3,7,4,7],[3,9,7,9],[3,10,7,10],[5,0,7,0],[5,1,7,1],[5,5,7,5],[5,6,7,6],[5,7,7,7],[8,0,11,0],[8,1,11,1],[8,4,11,4],[8,5,11,5],[8,6,11,6],[8,7,11,7],[8,8,22,8],[8,9,22,9],[8,10,22,10],[12,0,14,0],[12,1,14,1],[12,4,14,4],[12,5,14,5],[12,6,14,6],[12,7,14,7],[15,0,16,0],[15,1,16,1],[15,4,16,4],[15,5,16,5],[15,6,16,6],[15,7,16,7],[17,0,22,0],[17,1,22,1],[17,4,22,4],[17,5,22,5],[17,6,22,6],[17,7,22,7],[23,9,38,9],[23,10,38,10],[25,0,26,0],[25,1,26,1],[25,4,26,4],[39,9,42,9],[39,10,42,10],[41,0,42,0],[41,1,42,1],[41,5,42,5],[41,6,42,6],[41,7,42,7],[41,8,42,8],[43,0,44,0],[43,9,124,9],[43,10,124,10],[50,0,51,0],[57,0,58,0],[59,0,61,0],[65,0,66,0],[74,0,76,0],[78,0,79,0],[83,0,84,0],[87,0,88,0],[93,0,94,0],[121,0,122,0],[121,1,122,1],[125,9,143,9],[125,10,143,10],[131,0,135,0],[131,1,135,1],[131,4,135,4],[131,8,135,8],[139,0,141,0],[139,1,141,1],[139,4,141,4],[139,8,141,8],[144,9,168,9],[144,10,168,10],[146,0,148,0],[146,1,148,1],[146,4,148,4],[146,5,148,5],[169,9,201,9],[169,10,201,10],[170,0,172,0],[170,1,172,1],[174,0,175,0],[174,1,175,1],[176,0,178,0],[176,1,178,1],[179,0,181,0],[179,1,181,1],[184,0,188,0],[184,1,188,1],[192,0,193,0],[192,1,193,1],[199,0,200,0],[199,1,200,1],[202,0,203,0],[202,1,203,1],[202,8,203,8],[202,9,283,9],[202,10,283,10],[205,0,206,0],[205,1,206,1],[205,8,206,8],[207,0,208,0],[207,1,208,1],[209,0,211,0],[209,1,211,1],[209,8,211,8],[213,0,215,0],[213,1,215,1],[213,8,215,8],[216,0,217,0],[216,1,217,1],[218,0,220,0],[218,1,220,1],[223,0,224,0],[223,1,224,1],[228,0,229,0],[228,1,229,1],[233,0,236,0],[233,1,236,1],[237,0,238,0],[237,1,238,1],[239,0,242,0],[239,1,242,1],[245,0,246,0],[245,1,246,1],[245,8,246,8],[249,0,250,0],[249,1,250,1],[252,0,253,0],[252,1,253,1],[255,0,257,0],[255,1,257,1],[260,0,261,0],[260,1,261,1],[262,0,263,0],[262,1,263,1],[264,0,265,0],[264,1,265,1],[266,0,267,0],[266,1,267,1],[268,0,270,0],[268,1,270,1],[274,0,276,0],[274,1,276,1],[274,5,275,5],[274,6,275,6],[284,9,315,9],[284,10,315,10]]}
["附件："]
["核查情况表"]
["序号","企业名称","核查资质类别","等级","资质批准时间","核查情况","整改情况","是否撤回   资质","备注","各区申报意见","属地"]
[1,"苏州启迪盛银装饰科技有限公司","建筑装修装饰工程专业承包","壹级","2019-06-25","1、所有申报职称及技术工人均未人员信息采集。\n2、工人社保未提供。\n3、企业近一季度或当期合法的财务报表。（动态核查合格）\n4、未提供办公场所房产证明材料。\n5、装饰一级技术负责人姚明月：（1）职称（2011年10月，贝特装饰）与提供的业绩（蓝宝汽车2011年8月，盛银装饰）逻辑不符。（2）建造师（一级2019年12月取得）与以项目经理身份担任的业绩（2011年、2017年）不一致（不排除原先有二级建造师）。工作简历未提供且工作经历无法认定（标准10年）\n6、房建三级技术负责人姜滨海：（1）职称证（2010年9月）、建造师证（2010年6月）、简历（2002年至今盛银）与社保（2004年11月~12月；2017年8月~2020年5月）不相符；工作经历无法认定（标准5年）。（2）未提供2项符合房建三级的技术负责人个人业绩项目材料。\n7、职称人员：只确认已提供的暖通（侯跃飞）、电气（尤鸿鹄），缺少建筑工程相关专业4人。\n社保查询：社保为园区，无法查询",null,null,"重组合并分立","核查企业2家，涉及资质5项；\n不达标企业2家，涉及资质5项；","市直属"]
[null,null,"建筑工程施工总承包","叁级","2019-08-08",{"$nulls":3},"重组合并分立"]
[2,"苏州基业生态园林股份有限公司","水利水电工程施工总承包","叁级","2019-09-11","1、人员信息采集：（1）职称人员：魏建军、费莉莉、王军林已采集信息，其他人员均未信息采集。（2）技术工人：杨建权、王宝嘉、府斌、李锋、陈明、江斌已采集，其他人员均未采集。\n2、社保：提供的社保清单中缺少建造师周国、工人冯勇进。\n3、未提供办公场所房产证明材料。\n4、机电工程：（1）缺少技术负责人材料；（2）职称缺少焊接专业；\n5、水利水电工程：（1）技术负责人未提供基本情况及业绩表，且2项个人业绩指标均未达到标准中资质二级工程业绩要求，业绩时间重叠；（2）缺少水利水电工程相关专业人员10人；\n6、人员重复：（1）工人与建造师重复3人：李锋、周欢、府斌；（2）工人与职称重复1人叶丹。故对应标准，要么建造师、职称缺人，要么工人缺人。\n社保查询：待提供社保电子档后查询。",null,null,"重组合并分立"]
[null,null,"机电工程施工总承包","叁级","2019-09-11",{"$nulls":3},"重组合并分立"]
[null,null,"市政公用工程施工总承包","贰级","2019-07-07",{"$nulls":3},"重组合并分立"]
[3,"苏州大业建筑工程有限公司","市政公用工程施工总承包","叁级","2019-07-05","1、尚未办理安全生产许可证；\n2、技术负责人未设置，注册建造师、职称人员、技术工人0人；\n3、净资产达标并按时报送。",{"$nulls":3},"核查企业4家，涉及资质15项；\n不达标企业4家，涉及资质15项；","吴中区"]
[null,null,"地基基础工程专业承包","叁级"]
[null,null,"古建筑工程专业承包","叁级"]
[null,null,"城市及道路照明工程专业承包","叁级"]
[4,"苏州鑫峰兴市政建设工程有限公司","建筑工程施工总承包","叁级","2019-07-15","1、尚未办理安全生产许可证；\n2、技术负责人未设置；注册执业证书、职称证书、技术工人0人；\n3、尚未开通统计信息平台报送。"]
[null,null,"市政公用工程施工总承包","叁级"]
[null,null,"地基基础工程专业承包","叁级"]
[5,"苏州久恒建筑结构加固有限公司","地基基础工程专业承包","叁级","2019-10-09","1、技术负责人但未缴纳社保，未提供业绩；\n2、注册执业证书2人，职称人员1人，技术工人2人，部分人员未缴纳社保；\n3、企业净资产309.1万元（未达标），按时报送。"]
[null,null,"钢结构工程专业承包","叁级"]
[6,"苏州绿象征建设工程有限公司","建筑工程施工总承包","叁级","2019-07-15","1、技术负责人未设置；\n2、具有注册执业证书的10人（符合条件，5人为市政专业，4人为建筑专业，1人为机电和市政专业），具有职称证书的6人（建筑、城市及道路照明、环保符合条件，市政缺4人，钢结构缺4人，古建筑缺1人），技术工人15人（中级技术工13人，特殊工种2人，缺15人），部分人员未缴纳社保；\n3、净资产达标并按时报送。\n"]
[null,null,"市政公用工程施工总承包","叁级"]
[null,null,"钢结构工程专业承包","叁级"]
[null,null,"古建筑工程专业承包","叁级"]
[null,null,"城市及道路照明工程专业承包","叁级"]
[null,null,"环保工程专业承包","叁级"]
[7,"苏州佑铨环保工程有限公司","环保工程专业承包","叁级","2019-08-20","技术负责人和职称人员社保一个月。",null,null,"首次申请","核查企业15家，涉及资质16项；\n不达标企业1家，涉及资质1项","太仓"]
[8,"苏州镓诺华太环境建设有限公司","环保工程专业承包","贰级","2019-06-13","职称人员社保一个月。",null,null,"升级申请"]
[9,"江苏美杰欣建设发展有限公司","建筑工程施工总承包","贰级","2019-05-30","核查符合",null,null,"全资子公司间重组、分立"]
[null,null,"市政公用工程施工总承包","贰级",null,"核查符合",null,null,"全资子公司间重组、分立"]
[10,"江苏东投建设发展有限公司","建筑工程施工总承包","叁级","2019-08-20","技术负责人和职称人员社保一个月。",null,null,"增项申请"]
[11,"苏州科博思流体科技有限公司","建筑机电安装工程专业承包","叁级","2019-06-21","职称人员社保一个月。",null,null,"全资子公司间重组、分立"]
[12,"苏州市碧海永乐净化科技有限公司","建筑机电安装工程专业承包","叁级","2019-10-12","职称人员与申报时都不一致，社保提供一个月。",null,null,"首次申请"]
[13,"江苏仁诚建设工程有限公司","建筑工程施工总承包","贰级","2019-07-03","技术负责人及职称人员未见社保。",null,null,"升级申请"]
[14,"太仓市缘和装潢设计工程有限公司","建筑装修装饰工程专业承包","贰级","2019-08-05","技术负责人和职称人员社保一个月。",null,null,"首次申请"]
[15,"苏州颐德装饰工程有限公司","建筑工程施工总承包","叁级","2019-10-12","核查符合。",null,null,"增项申请"]
[16,"太仓市黑马建设发展有限公司","建筑装修装饰工程专业承包","贰级","2019-08-14","核查符合。",null,null,"全资子公司间重组、分立"]
[17,"苏州升耀建筑装饰有限公司","建筑装修装饰工程专业承包","壹级","2019-08-30","核查符合。",null,null,"升级申请"]
[18,"太仓市爱能吉电力工程有限公司","城市及道路照明工程专业承包","叁级","2019-10-12","技术负责人及职称人员与申报时不一致。",null,null,"增项申请"]
[19,"江苏沁福建筑工程有限公司","建筑工程施工总承包","贰级","2019-09-30","核查符合。",null,null,"全资子公司间重组、分立"]
[20,"江苏晋仓建筑工程有限公司","建筑工程施工总承包","贰级","2019-09-03","核查符合。",null,null,"全资子公司间重组、分立"]
[21,"江苏中为润泰建设有限公司","消防设施工程专业承包","贰级","2019-11-08","核查符合。",null,null,"增项申请"]
[22,"东方雨虹建设工程有限公司","建筑工程施工总承包","叁级","2019-07-01","资质标准达标",{"$nulls":4},"姑苏区"]
[23,"苏州亚厦建设工程有限公司","施工劳务不分专业","不分等级","2019-08-16","少人员：2人整改中"]
[24,"江苏铭瑞浩工程科技有限公司","建筑机电安装工程专业承包","叁级","2019-09-17","资质标准达标"]
[null,null,"环保工程专业承包","叁级","2019-09-17"]
[25,"江苏金厦建设集团有限公司","地基基础工程专业承包","壹级",20190513,"合格",null,null,"升级","核查企业67家，涉及资质82项；\n不达标企业45家，涉及资质52项；\n拟撤回资质企业0家，涉及资质0项。","张家港"]
[null,"江苏金厦建设集团有限公司","城市及道路照明工程专业承包","叁级",20190712,"合格",null,null,"重组分立"]
[26," 江苏兴安建设集团有限公司","建筑工程施工总承包","贰级",20190513,"合格",null,null,"升级"]
[27,"张家港市盛洲基础工程有限公司","地基基础工程专业承包","贰级",20190513,"合格",null,null,"升级"]
[28,"江苏励腾建设工程有限公司","特种工程(结构补强)专业承包","不分等级",20190527,"合格",null,null,"增项"]
[29,"江苏鲁班建设集团有限公司","古建筑工程专业承包","贰级",20190704,"合格",null,null,"重组分立"]
[30,"张家港市锦明环保工程装备有限公司","环保工程专业承包","贰级",20190620,"合格",null,null,"重组分立"]
[31,"张家港市西张建筑工程有限公司","建筑装修装饰工程专业承包","贰级",20190703,"合格",null,null,"增项"]
[null,"张家港市西张建筑工程有限公司","建筑幕墙工程专业承包","贰级",20190904,"合格",null,null,"重组分立"]
[32,"江苏捷兴机电设备安装工程有限公司","防水防腐保温工程专业承包","贰级",20190703,"合格",null,null,"增项"]
[33,"张家港市科伟建筑有限公司","建筑装修装饰工程专业承包","贰级",20190723,"合格",null,null,"增项"]
[34,"江苏鑫佳城建设发展有限公司","建筑装修装饰工程专业承包","贰级",20190723,"合格",null,null,"首次"]
[35,"江苏顺水源工业设备安装有限公司","消防设施工程专业承包","贰级",20190527,"合格",null,null,"首次"]
[36,"江苏联峰工业装备科技有限公司","环保工程专业承包","贰级",20190812,"合格",null,null,"重组分立"]
[37,"江苏凯沙电气有限公司","电力工程施工总承包","贰级",20190816,"合格",null,null,"升级"]
[null,"江苏凯沙电气有限公司","输变电工程专业承包","贰级",20190816,"合格",null,null,"升级"]
[38,"苏州如港建设工程有限公司","钢结构工程专业承包","叁级",20190820,"合格",null,null,"增项"]
[null,"苏州如港建设工程有限公司","建筑工程施工总承包","叁级",20190820,"合格",null,null,"增项"]
[null,"苏州如港建设工程有限公司","防水防腐保温工程专业承包","贰级",20190918,"合格",null,null,"增项"]
[39,"江苏兆建建设工程有限公司","建筑工程施工总承包","叁级",20190821,"合格",null,null,"重组分立"]
[40,"张家港市建筑设计研究院有限责任公司","特种工程(结构补强)专业承包","不分等级",20190705,"合格",null,null,"增项"]
[41,"苏州通港建筑工程有限公司","建筑装修装饰工程专业承包","贰级",20190723,"合格",null,null,"增项"]
[42,"江苏江厦建筑安装工程有限公司","消防设施工程专业承包","贰级",20190830,"合格",null,null,"增项"]
[null,"江苏江厦建筑安装工程有限公司","建筑装修装饰工程专业承包","贰级",20190830,"合格",null,null,"增项"]
[43,"江苏国安消防科技有限公司","消防设施工程专业承包","壹级",20190918,"合格",null,null,"升级"]
[44,"江苏扬鼎装饰工程有限公司","特种工程(结构补强)专业承包","不分等级",20190918,"合格",null,null,"增项"]
[45,"张家港市中海电气成套有限公司","电力工程施工总承包","叁级",20190911,"合格",null,null,"重组分立"]
[46,"江苏旭龙环境科技有限公司","环保工程专业承包","贰级",20190903,"合格",null,null,"重组分立"]
[47,"张家港市兴港混凝土有限公司","预拌混凝土专业承包","不分等级",20160616,"合格",null,null,"换证"]
[48,"张家港市伟泰混凝土有限公司","预拌混凝土专业承包","不分等级",20160510,"合格",null,null,"换证"]
[49,"张家港市垲锐保温材料有限公司","防水防腐保温工程专业承包","贰级",20190513,"无安许证、净资产申报不达标、技术负责人业绩不符、2名职称人员无社保、申请资质时承诺社保未提供","整改中","否，限期整改","首次"]
[50,"江苏冰河建筑装饰工程有限公司","建筑幕墙工程专业承包","贰级",20190513,"技术负责人业绩不符、缺1名建造师","整改中","否，限期整改","首次"]
[null,"江苏冰河建筑装饰工程有限公司","特种工程(结构补强)专业承包","不分等级",20190513,"技术负责人业绩不符","整改中","否，限期整改","首次"]
[null,"江苏冰河建筑装饰工程有限公司","建筑装修装饰工程专业承包","贰级",20190513,"技术负责人业绩不符","整改中","否，限期整改","首次"]
[51,"张家港市泓泰工业设备制造有限公司","建筑机电安装工程专业承包","叁级",20190523,"技术负责人业绩不符，4名职称人员专业不符，申请资质时承诺社保缺3人","整改中","否，限期整改","重组分立"]
[52,"张家港市厚上建设有限公司","建筑工程施工总承包","叁级",20190531,"技术负责人业绩不符、申请资质时承诺社保未提供","整改中","否，限期整改","重组分立"]
[null,"张家港市厚上建设有限公司","市政公用工程施工总承包","叁级",20190531,"技术负责人业绩不符、申请资质时承诺社保未提供","整改中","否，限期整改","重组分立"]
[53,"江苏鲁班建设集团有限公司","电子与智能化工程专业承包","贰级",20190606,"技术负责人业绩不符","整改中","否，限期整改","重组分立"]
[54,"张家港双建保温防水工程有限公司","防水防腐保温工程专业承包","贰级",20190610,"未提供相关制度、净资产未填报、未任命技术负责人、现有职称人员社保未提供、申请资质时承诺社保未提供","整改中","否，限期整改","重组分立"]
[55,"张家港博赛建筑装饰有限公司","消防设施工程专业承包","贰级",20190610,"未任命技术负责人、现有3名建造师和3名职称人员未提供社保、申请资质时承诺社保未提供","整改中","否，限期整改","重组分立"]
[56,"苏州力一环境科技有限公司","建筑机电安装工程专业承包","叁级",20190628,"技术负责人业绩不符、申请资质时承诺社保未提供","整改中","否，限期整改","重组分立"]
[null,"苏州力一环境科技有限公司","环保工程专业承包","叁级",20190628,"技术负责人业绩不符、申请资质时承诺社保未提供","整改中","否，限期整改","重组分立"]
[57,"苏州兆达加固工程有限公司","特种工程(结构补强)专业承包","不分等级",20190703,"未提供相关制度、无安许证、净资产未填报、技术负责人业绩不符、缺1名工程师和3名技工、申请资质时承诺社保及业绩未提供","整改中","否，限期整改","首次"]
[58,"张家港市盛华幕墙工程有限公司","建筑幕墙工程专业承包","贰级",20190719,"未任命技术负责人、无职称人员、申请资质时承诺社保未提供","整改中","否，限期整改","重组分立"]
[59,"张家港市荣华工业设备安装有限公司","地基基础工程专业承包","叁级",20190724,"技术负责人业绩不符、缺1名岩土工程师","整改中","否，限期整改","重组分立"]
[null,"张家港市荣华工业设备安装有限公司","城市及道路照明工程专业承包","叁级",20190724,"技术负责人业绩不符","整改中","否，限期整改","重组分立"]
[60,"张家港市昌盛装饰工程有限公司","建筑装修装饰工程专业承包","贰级",20190724,"技术负责人经历不足、业绩不符、现有职称人员未提供社保、申请资质时承诺社保未提供","整改中","否，限期整改","重组分立"]
[61,"张家港市亚宏钢结构工程有限公司","钢结构工程专业承包","叁级",20190802,"未任命技术负责人、现有建造师有2人社保未提供、无职称人员、申请资质时承诺社保未提供","整改中","否，限期整改","重组分立"]
[62,"张家港平乔建筑机械安装有限公司","起重设备安装工程专业承包","叁级",20190802,"技术负责人业绩不符、职称人员1人社保未提供、技工人员缺4人、申报资质时承诺社保有1人未提供（技术负责人）","整改中","否，限期整改","重组分立"]
[63,"张家港市隆鑫金属制品有限公司","钢结构工程专业承包","叁级",20190808,"未提供相关制度、技术负责人业绩不符、2名建造师社保未提供、无职称人员","整改中","否，限期整改","重组分立"]
[64," 江苏顺水源工业设备安装有限公司","建筑工程施工总承包","叁级",20190809,"申报资质时承诺社保有2人未提供","整改中","否，限期整改","重组分立"]
[null," 江苏顺水源工业设备安装有限公司","机电工程施工总承包","叁级",20190809,"申报资质时承诺社保有2人未提供","整改中","否，限期整改","重组分立"]
[65,"张家港市顺中建筑安装工程有限公司","建筑工程施工总承包","叁级",20190820,"申报资质时承诺社保有5人未提供","整改中","否，限期整改","首次"]
[66,"苏州枫昊环境科技有限公司","环保工程专业承包","叁级",20190823,"技术负责人业绩不符、申请资质时承诺社保未提供","整改中","否，限期整改","重组分立"]
[67,"苏州沃磁工业设备安装有限公司","建筑机电安装工程专业承包","叁级",20190917,"无安许证、技术负责人业绩不符、无技工人员","整改中","否，限期整改","重组分立"]
[68,"张家港市伟业机械制造有限公司","建筑机电安装工程专业承包","叁级",20190924,"无安许证、净资产未填报、技术负责人业绩不符且未提供社保、1名建造师社保未提供、无职称人员无技工人员","整改中","否，限期整改","重组分立"]
[69,"江苏大世界建设有限公司","建筑工程施工总承包","叁级",20190927,"技术负责人业绩不符","整改中","否，限期整改","重组分立"]
[70,"江苏融源设备安装有限公司","消防设施工程专业承包","贰级",20191011,"净资产不达标、技术负责人不符合标准","整改中","否，限期整改","重组分立"]
[71,"江苏绿亿医疗科技有限公司","建筑机电安装工程专业承包","叁级",20191012,"无安许证","整改中","否，限期整改","首次"]
[72,"张家港市德诚鑫建设工程有限公司","地基基础工程专业承包","叁级",20191012,"未任命技术负责人、建造师缺1人且均未提供社保、职称人员缺1岩土工程师且均未提供社保、技工人员缺13人、申报资质时承诺社保未提供","整改中","否，限期整改","首次申请"]
[73,"苏州恒耐建筑装饰工程有限公司","消防设施工程专业承包","贰级",20191017,"技术负责人不符合标准、职称人员缺1自动化专业工程师、技工人员缺6人","整改中","否，限期整改","重组分立"]
[74,"张家港市利都清洗防水工程有限公司","防水防腐保温工程专业承包","贰级",20191025,"无安许证、现有人员都为挂靠人员、申报资质时承诺社保未提供","整改中","否，限期整改","首次"]
[75,"苏州堡诺装饰设计有限公司","建筑装修装饰工程专业承包","贰级",20191104,"无安许证、所有企业主要人员均无","整改中","否，限期整改","重组分立"]
[76,"江苏荣厦建设工程有限公司","建筑工程施工总承包","叁级",20160203,"建造师缺1人","整改中","否，限期整改","换证"]
[77,"江苏铜釜建设工程有限公司","建筑工程施工总承包","叁级",20181108,"建造师、净资产不达标，系统不合格满3个月","整改中","否，限期整改，整改完成前暂停承接业务","首次"]
[78,"苏州前迅机电科技有限公司","电子与智能化工程专业承包","贰级",20200116,"建造师不达标，系统不合格满3个月","整改中","否，限期整改，整改完成前暂停承接业务","首次"]
[79,"苏州市太平洋智能化工程有限公司","电子与智能化工程专业承包","贰级",20151230,"建造师不达标，系统不合格满3个月","整改中","否，限期整改，整改完成前暂停承接业务","换证"]
[80,"苏州首创科技发展有限公司","电子与智能化工程专业承包","贰级",20160425,"建造师不达标，系统不合格满3个月","整改中","否，限期整改，整改完成前暂停承接业务","换证"]
[81,"苏州鑫强装饰工程有限公司","建筑装修装饰工程专业承包","贰级",20160506,"建造师不达标，系统不合格满3个月","整改中","否，限期整改，整改完成前暂停承接业务","换证"]
[82,"张家港国华新能源有限公司","建筑机电安装工程专业承包","叁级",20180213,"建造师不达标，系统不合格满3个月","整改中","否，限期整改，整改完成前暂停承接业务","首次"]
[83,"张家港和庆机械设备租赁有限公司","起重设备安装工程专业承包","贰级",20190306,"净资产不达标、系统不合格满3个月","整改中","否，限期整改，整改完成前暂停承接业务","重组分立"]
[84,"张家港满堂红装饰工程有限公司","建筑装修装饰工程专业承包","贰级",20190123,"建造师不达标，系统不合格满3个月","整改中","否，限期整改，整改完成前暂停承接业务","换证"]
[85,"张家港市典石装饰工程有限公司","建筑装修装饰工程专业承包","贰级",20160523,"建造师不达标，系统不合格满3个月","整改中","否，限期整改，整改完成前暂停承接业务","换证"]
[86,"张家港市东润智能电气有限公司","电子与智能化工程专业承包","贰级",20151221,"建造师不达标，系统不合格满3个月","整改中","否，限期整改，整改完成前暂停承接业务","换证"]
[87,"张家港市恒泰建筑工程有限公司","建筑工程施工总承包","叁级",20160303,"建造师、净资产不达标，系统不合格满3个月","整改中","否，限期整改，整改完成前暂停承接业务","换证"]
[88,"张家港鑫灶林建筑装饰有限公司","建筑装修装饰工程专业承包","贰级",20171115,"建造师不达标，系统不合格满3个月","整改中","否，限期整改，整改完成前暂停承接业务","换证"]
[89,"江苏金烁工程总承包有限公司","建筑工程施工总承包","叁级",20160616,"建造师、净资产不达标，系统不合格满3个月","整改中","否，限期整改，整改完成前暂停承接业务","换证"]
[90,"江苏赛富隆重工有限公司","钢结构工程专业承包","贰级",20160510,"净资产不达标、系统不合格满3个月","整改中","否，限期整改，整改完成前暂停承接业务","换证"]
[91,"江苏盛港建设安装工程有限公司","石油化工工程施工总承包","叁级",20160629,"建造师、净资产不达标，系统不合格满3个月","整改中","否，限期整改，整改完成前暂停承接业务","换证"]
[null,null,"城市及道路照明工程专业承包","叁级",20160629,"建造师、净资产不达标，系统不合格满3个月","整改中","否，限期整改，整改完成前暂停承接业务","换证"]
[92,"江苏新中环保股份有限公司","建筑机电安装工程专业承包","叁级",20160519,"建造师、净资产不达标，系统不合格满3个月","整改中","否，限期整改，整改完成前暂停承接业务","换证"]
[93,"张家港市永康建筑工程有限公司","模板脚手架专业承包","不分等级",20160629,"净资产不达标、系统不合格满3个月","整改中","否，限期整改，整改完成前暂停承接业务","换证"]
[94,"苏州市舍利彩钢复新工程有限公司","防水防腐保温工程专业承包","贰级","2019-06-13","1.  职称人员人数、专业不符合资质标准\n2.  原企业资质技术负责人已离职，公司无新任命的技术负责人\n3.  公司相关管理制度不够完善","正在整改","否","房建","核查企业13家，涉及资质20项；\n不达标企业10家，涉及资质15项；\n拟撤回资质企业1家，涉及资质2项。","常熟"]
[95,"江苏虞丰装饰工程有限公司","建筑机电安装工程专业承包","叁级","2019-05-13","1.  注册建造师、职称人员人数、专业不符合资质标准\n2.  公司相关管理制度不够完善","正在整改","否","房建"]
[96,"江苏大宇空调设备有限公司","建筑机电安装工程专业承包","贰级","2019-06-14","合格",null,null,"房建"]
[97,"苏州市禾众盛成套机电设备有限公司","建筑机电安装工程专业承包","叁级","2019-05-30","1.  职称人员、技术工人人数不满足资质标准\n2.  系统核查不合格，显示净资产未填报\n3.  原企业资质技术负责人已离职，公司无新任命的技术负责人\n4.  公司相关管理制度不够完善","正在整改","否","房建"]
[98,"江苏中宸建筑装饰工程有限公司","建筑装修装饰工程专业承包","贰级","2019-05-30","1.  职称人员、技术工人人数不满足资质标准\n2.  公司无任命新的技术负责人\n3.  公司相关管理制度不够完善","正在整改","否","房建"]
[99,"江苏雁锦建设工程有限公司","建筑工程施工总承包","叁级","2019-05-14","1.  职称人员、技术工人人数不满足资质标准\n2.  企业无任命新的技术负责人\n3.  公司相关管理制度不够完善","正在整改","否","房建"]
[100,"江苏中凯建设工程有限公司","建筑工程施工总承包","叁级","2019-06-19","1.  职称人员建筑工程相关专业人数不满足资质标准\n2.  公司相关管理制度不够完善","整改完成",null,"房建"]
[null,null,"地基基础工程专业承包","叁级",null,"1.职称人员人数、专业不满足资质标准\n2.公司相关管理制度不够完善","正在整改","否"]
[null,null,"环保工程专业承包","叁级",null,"1.公司相关管理制度不够完善","整改完成"]
[null,null,"城市及道路照明工程专业承包","叁级",null,"1.公司相关管理制度不够完善","整改完成"]
[null,null,"钢结构工程专业承包","叁级",null,"1.职称人员人数、专业不满足资质标准\n2.公司相关管理制度不够完善","正在整改","否"]
[101,"常熟市宏瑞建筑工程有限公司","市政公用工程施工总承包","叁级","2019-11-08","合格",null,null,"房建"]
[102,"江苏永申景观建设有限公司","隧道工程专业承包","叁级","2019-05-21","1.  职称人员不满足资质标准要求\n2.  缺少资质标准要求的技术装备","正在整改","否","房建"]
[103,"苏州永立通建设有限公司","建筑装修装饰工程专业承包","贰级","2019-09-30","1.职称人员人数不满足资质标准","整改完成",null,"房建"]
[104,"江苏永通市政园林建设有限公司","机电工程施工总承包","叁级","2019-06-28","1.  职称人员专业不齐全，技术工人人数不满足资质标准要求","整改完成",null,"房建"]
[null,null,"古建筑工程专业承包","叁级",null,"合格"]
[null,null,"模板脚手架专业承包","不分等级",null,"合格"]
[105,"常熟市金龙装饰有限责任公司","建筑幕墙工程专业承包","壹级","2019-05-14","合格",null,null,"房建"]
[106,"江苏金土木建设集团华宇工程有限公司","建筑工程施工总承包","叁级","2016-01-13","1.  建造师、职称人员、技术工人不满足资质标准要求\n2.  系统核查不合格，企业净资产未按时申报","公司不再经营，放弃整改","是","房建"]
[107,"苏州天筑景观工程有限公司","古建筑工程专业承包","二级","2019-08-07","缺工程师2人，技工3人","整改中","否",null,"核查企业23家，涉及资质25项；\n不达标企业14家，涉及资质14项；\n拟撤回资质企业0家，涉及资质0项。","高新区"]
[108,"江苏浚笠建设有限公司","水利水电工程施工总承包","三级","2019-05-21","缺工程师6人，技工4人","整改中","否"]
[109,"苏州市中天设备安装工程有限公司","建筑工程施工总承包","三级","2019-10-12","环保资质技术负责人不符合要求","整改中","否"]
[null,null,"钢结构工程专业承包","三级",null,null,"整改中","否"]
[null,null,"古建筑工程专业承包","三级",null,null,"整改中","否"]
[110,"苏州朗捷通智能科技有限公司","消防设施工程专业承包","二级","2019-08-26","符合要求","无需整改","否"]
[111,"苏州新创空调净化设备有限责任公司","建筑机电安装工程专业承包","三级","2019-08-12","符合要求","无需整改","否"]
[112,"苏州中路工程有限公司","电力工程施工总承包","三级","2019-10-29","缺建造师3人，中级职称10人，技工29人","整改中","否"]
[113,"苏州绿化建设发展有限公司","建筑装修装饰工程专业承包","一级","2019-10-30","符合要求","无需整改","否"]
[114,"江苏盛世华为工程技术有限公司","建筑装修装饰工程专业承包","一级","2019-11-14","符合要求","无需整改","否"]
[115,"苏州令通和建筑工程有限公司","防水防腐保温工程专业承包","二级","2019-06-19","建造师无，中级职称无，技工无","整改中","否"]
[116,"苏州曼凯系统集成科技有限公司","电子与智能化工程专业承包","二级","2019-09-04","技工缺5人","整改中","否"]
[117,"苏州金昕达建筑工程有限公司","市政公用工程施工总承包","三级","2019-08-26","技工缺4人","整改中","否"]
[118,"苏州高新区兴旺土石方有限公司","市政公用工程施工总承包","三级","2019-07-22","建造师无，中级职称无，技工无","整改中","否"]
[119,"苏州帝宸建设有限公司","建筑装修装饰工程专业承包","一级","2019-09-11","符合要求","无需整改","否"]
[120,"苏州环创建材科技有限公司","防水防腐保温工程专业承包","二级","2019-05-27","缺中级职称10人，技工29人","整改中","否"]
[121,"苏州繁硕集成系统工程有限公司","机电工程施工总承包","三级","2019-06-17","缺建造师2人，中级职称4人，技工13人","整改中","否"]
[122,"苏州本源环保科技有限公司","古建筑工程专业承包","三级","2019-09-20","中级职称无，技工无","整改中","否"]
[123,"苏州沃顺建筑机械设备有限公司","起重设备安装工程专业承包","二级","2019-10-30","符合要求","无需整改","否"]
[124,"苏州新城园林发展有限公司","建筑装修装饰工程专业承包","二级","2019-09-17","符合要求","无需整改","否"]
[125,"苏州茂德机电工程有限公司","机电工程施工总承包","三级","2019-08-05","缺中级职称10人，技工24人","整改中","否"]
[126,"苏州市立强电力设备工程有限公司","建筑装修装饰工程专业承包","二级","2019-09-27","符合要求","无需整改","否"]
[127,"苏州品正智能工程有限公司","建筑机电安装工程专业承包","三级","2019-08-08","缺中级职称3人，技工8人","整改中","否"]
[128,"苏州锐创装饰工程有限公司","建筑装修装饰工程专业承包","二级","2019-09-16","缺中级职称5人，技工14人","整改中","否"]
[129,"苏州信颐系统集成有限公司","电子与智能化工程专业承包","一级","2019-09-17","符合要求","无需整改","否"]
[130,"张家港保税区华瑞工程有限公司","环保工程专业承包","叁级","2019-10-24","合格",{"$nulls":3},"核查企业20家，涉及资质33项；\n不达标企业5家，涉及资质7项；\n拟撤回资质企业0家，涉及资质0项。","保税区"]
[131,"张家港保税区伟鑫建设工程有限公司","建筑工程施工总承包","叁级","2019-08-06","合格"]
[null,null,"市政公用工程施工总承包","叁级","2019-08-06","合格"]
[null,null,"城市及道路照明工程专业承包","叁级","2019-08-06","合格"]
[132,"苏州港张家港保税区工程有限公司","建筑工程施工总承包","叁级","2019-03-26","合格"]
[133,"江苏德丰建设集团有限公司","防水防腐保温工程专业承包","贰级","2019-09-30","合格"]
[null,null,"建筑幕墙工程专业承包","贰级","2019-09-30","合格"]
[134,"江苏双山建筑工程有限公司","建筑工程施工总承包","壹级","2019-03-27","合格"]
[null,null,"市政公用工程施工总承包","贰级","2019-07-18","合格"]
[null,null,"起重设备安装工程专业承包","贰级","2019-09-12","合格"]
[135,"江苏黑石头工程有限公司","建筑幕墙工程专业承包","贰级","2019-10-21","建造师不达标，系统不合格满3个月","整改中","否，限期整改"]
[null,null,"建筑工程施工总承包","叁级","2019-06-25","建造师不达标，系统不合格满3个月","整改中","否，限期整改"]
[null,null,"钢结构工程专业承包","叁级","2019-06-25","建造师不达标，系统不合格满3个月","整改中","否，限期整改"]
[136,"江苏宇和工业设备安装有限公司","建筑机电安装工程专业承包","贰级","2019-07-03","合格"]
[137,"江苏晨阳恒佳建设工程有限公司","水利水电工程施工总承包","贰级","2019-06-20","合格"]
[138,"江苏金鑫华建设工程有限公司","建筑工程施工总承包","贰级","2019-02-26","合格"]
[null,null,"建筑装修装饰工程专业承包","贰级","2019-07-20","合格"]
[null,null,"建筑机电安装工程专业承包","贰级","2019-02-12","合格"]
[null,null,"模板脚手架专业承包","不分等级","2019-09-14","合格"]
[null,null,"不分专业施工劳务","不分等级","2019-09-14","合格"]
[139,"张家港保税区泓晟安装工程有限公司","建筑机电安装工程专业承包","叁级","2019-02-01","建造师不达标，系统不合格满3个月","整改中","否，限期整改"]
[140,"张家港中集圣达因低温装备有限公司","机电工程施工总承包","叁级","2019-11-27","合格"]
[141,"江苏十晟建筑工程有限公司","建筑工程施工总承包","贰级","2019-09-02","合格"]
[142,"张家港保税区徽建劳务有限公司","模板脚手架专业承包","不分等级","2019-12-27","合格"]
[null,null,"不分专业施工劳务","不分等级","2019-12-27","合格"]
[143,"张家港沃美建设工程有限公司","建筑工程施工总承包","贰级","2019-08-10","合格"]
[144,"江苏金厦建设集团有限公司","防水防腐保温工程专业承包","贰级","2019-05-27","合格"]
[145,"张家港市华孚实业有限公司","防水防腐保温工程专业承包","贰级","2019-09-05","合格"]
[146,"智维工程技术（苏州）有限公司","电力工程施工总承包","叁级","2019-05-22","合格"]
[147,"江苏正上宏电力工程有限公司","电力工程施工总承包","叁级","2019-05-22","建造师、净资产不达标，系统不合格满3个月","整改中","否，限期整改"]
[148,"苏州弛业建设工程有限公司","建筑工程施工总承包","叁级","2019-11-27","建造师不达标，系统不合格满3个月","整改中","否，限期整改"]
[null,null,"市政公用工程施工总承包","叁级","2019-12-20","建造师不达标，系统不合格满3个月","整改中","否，限期整改"]
[149,"江苏铭祥瑞建筑安装工程有限公司","建筑装修装饰工程专业承包","贰级","2019-11-13","合格"]
[1,"苏州市东桥建筑有限公司 ","施工总承包 建筑工程\n","贰级","2016-03-18","符合资质标准",null,"否","存在职业资格“挂证”现象","核查企业50家，涉及资质82项；\n不达标企业8家，涉及资质10项；\n拟撤回资质企业0家，涉及资质0项","相城区"]
[null,null,"专业承包 建筑机电安装工程 ","叁级","2016-04-13","符合资质标准",null,"否"]
[2,"江苏昱荣建筑工程有限公司 ","施工总承包 建筑工程 ","贰级","2015-12-14","符合资质标准",null,"否","存在职业资格“挂证”现象"]
[3,"苏州市柳氏建筑安装工程有限公司","施工总承包 建筑工程 \n","叁级","2015-11-30","符合资质标准",null,"否","存在职业资格“挂证”现象"]
[null,null,"专业承包 地基基础工程 ","叁级","2015-11-30","符合资质标准",null,"否"]
[4,"苏州朗盛建设发展有限公司 ","施工总承包 建筑工程\n"," 叁级","2015-11-30","符合资质标准",null,"否"]
[null,null,"专业承包 建筑机电安装工程 ","叁级","2015-11-30","符合资质标准",null,"否"]
[5,"苏州超博建设工程有限公司","施工总承包 建筑工程 \n\n","叁级","2016-11-15","符合资质标准",null,"否","存在职业资格“挂证”现象"]
[null,null,"专业承包 消防设施工程 ","贰级","2018-06-26","符合资质标准",null,"否"]
[null,null,"专业承包 建筑装修装饰工程 ","贰级","2018-03-15","符合资质标准",null,"否"]
[6,"江苏守望建设工程有限公司","施工总承包 建筑工程 \n","贰级","2015-12-14","符合资质标准",null,"否"]
[7,"苏州三佳交通工程有限公司 ","施工总承包 市政公用工程 叁级\n\n专业承包 城市及道路照明工程 叁级              特种工程（结构补强）专业承包不分等级\n","叁级","2017-12-13","符合资质标准",null,"否","存在职业资格“挂证”现象"]
[null,null,"特种工程(结构补强)\n","不分等级","2017-01-20","符合资质标准",null,"否"]
[null,null,"城市及道路照明工程","叁级","2017-12-01","符合资质标准",null,"否"]
[8,"江苏栋思尧电力科技有限公司","施工总承包 电力工程 ","叁级","2018-09-21","符合资质标准",null,"否","存在职业资格“挂证”现象"]
[null,null,"专业承包  输变电工程","叁级","2019-11-04","符合资质标准",null,"否","分立重组"]
[9,"苏州市天地工业设备安装有限公司","施工总承包 电力工程 \n","叁级","2018-08-09","符合资质标准",null,"否"]
[null,null,"专业承包  输变电工程","叁级","2019-04-10","符合资质标准",null,"否","分立重组"]
[null,null,"专业承包 建筑机电安装工程 ","叁级","2017-12-13","符合资质标准",null,"否"]
[10,"苏州晟昊蓝建设工程有限公司","市政公用工程总承包","叁级","2018-08-17","符合资质标准",null,"否"]
[11,"苏州市相城区通标交通工程维运有限公司","市政公用工程施工总承包\n","叁级","2019-11-27","符合资质标准",null,"否","首次申请"]
[12,"苏州蓝梦路桥建设有限公司","施工总承包 市政公用工程 \n","叁级","2018-12-07","符合资质标准",null,"否"]
[null,null,"施工劳务 不分专业 ","不分等级","2017-04-15","符合资质标准",null,"否"]
[13,"江苏新尚机电工程有限公司","专业承包 消防设施工程 ","贰级","2018-02-11","符合资质标准",null,"否","存在职业资格“挂证”现象"]
[14,"苏州瑞能岩土工程有限公司","专业承包 地基与基础工程  ","壹级","2018-01-02","符合资质标准",null,"否","吴中区转入"]
[15,"苏州和宏基础工程有限公司","专业承包 地基基础工程 ","壹级","2019-05-27","符合资质标准",null,"否","升级"]
[16,"苏州环城地基基础工程有限公司","专业承包 地基基础工程 \n","叁级","2018-05-15","符合资质标准",null,"否"]
[null,null,"专业承包 钢结构工程 ","叁级","2018-05-15","符合资质标准",null,"否"]
[17,"苏州市鹏月环保工程有限公司 ","专业承包 环保工程 ","叁级","2015-12-23","符合资质标准",null,"否"]
[18,"苏州月辉环保科技有限公司","   专业承包 环保工程 ","叁级","2019-02-01","符合资质标准",null,"否","首次申领"]
[19,"超冠（苏州）机电设备工程有限公司","机电安装专业承包","叁级"," \n2019-10-08","符合资质标准",null,"否","首次申领"]
[20,"苏州市亿兆机电工程技术有限公司 ","专业承包 建筑机电安装工程 ","壹级","2019-09-30","符合资质标准",null,"否","升级"]
[null,null,"专业承包  建筑装修装饰工程"," 贰级\n \n","2019-04-17","符合资质标准",null,"否","增项"]
[null,null,"专业承包   消防设施工程"," 贰级\n \n","2019-04-17","符合资质标准",null,"否","增项"]
[null,null," 专业承包  环保工程","叁级","2019-02-01","符合资质标准",null,"否","增项"]
[21,"苏州华源电气有限公司","专业承包 建筑机电安装工程 ","叁级","2018-11-05","符合资质标准",null,"否"]
[null,null,"专业承包  输变电工程","叁级","2019-07-23","符合资质标准",null,"否","分立重组"]
[22,"苏州锦宇钢结构有限公司 ","专业承包 钢结构工程 \n","贰级","2016-01-08","符合资质标准",null,"否"]
[null,null,"专业承包 建筑幕墙工程 \n","贰级","2016-01-08","符合资质标准",null,"否"]
[null,null,"专业承包 建筑装修装饰工程 ","贰级","2016-01-08","符合资质标准",null,"否"]
[null,null,"建筑施工总承包 ","贰级","2019-09-12","符合资质标准",null,"否","升级"]
[23,"苏州基业钢结构有限公司 ","专业承包 钢结构工程 ","叁级","2016-01-13","符合资质标准",null,"否"]
[24,"苏州五建钢结构有限公司","专业承包 钢结构工程"," 贰级","2015-11-30","符合资质标准",null,"否"]
[25,"苏州锦天钢结构有限公司 ","专业承包 钢结构工程 \n"," 贰级","2015-12-14","符合资质标准",null,"否","存在职业资格“挂证”现象"]
[null,null,"专业承包 建筑幕墙工程 "," 贰级","2015-12-14","符合资质标准",null,"否"]
[26,"苏州市新发门窗有限公司","专业承包 建筑幕墙工程 ","贰级","2016-01-08","符合资质标准",null,"否"]
[27,"苏州亚冠信息科技有限公司 ","专业承包 电子与智能化工程 ","贰级","2015-12-07","符合资质标准",null,"否","存在职业资格“挂证”现象"]
[28,"苏州市大龙装饰设计有限公司","专业承包 建筑装修装饰工程 ","贰级","2016-10-13","符合资质标准",null,"否"]
[null,null,"施工总承包 建筑工程","叁级","2019-05-09","符合资质标准",null,"否","增项"]
["29","苏州艺朗装饰工程有限公司","专业承包 建筑装饰装修工程 ","贰级 ","2018-02-09","符合资质标准",null,"否"]
[30,"苏州百联节能科技股份有限公司","专业承包 建筑装修装饰工程 ","贰级 ","2015-11-30","符合资质标准",null,"否"]
[null,null,"防水防腐保温工程","贰级 ","2017-01-20","符合资质标准",null,"否"]
[31,"苏州顺天建筑安装有限公司 ","专业承包 建筑装修装饰工程 ","贰级 ","2015-12-14","符合资质标准",null,"否"]
[32,"江苏苏鑫装饰（集团）公司 ","专业承包 建筑装修装饰工程 \n","壹级","2016-12-28","符合资质标准",null,"否","存在职业资格“挂证”现象"]
[null,null,"专业承包 钢结构工程 ","贰级","2016-03-04","符合资质标准",null,"否","存在职业资格“挂证”现象"]
[null,null,"专业承包建筑幕墙工程\n","壹级","2018-01-08","符合资质标准",null,"否","存在职业资格“挂证”现象"]
[33,"苏州盈正装饰工程营造有限公司","专业承包 建筑装修装饰工程 ","贰级"," \n2017-02-17","符合资质标准",null,"否"]
[34,"金螳螂华东建筑装饰有限公司","专业承包 建筑装修装饰工程 ","贰级","2018-11-22","符合资质标准",null,"否"]
[35,"苏州香武士设计装饰有限公司","专业承包 建筑幕墙工程\n"," 壹级","2017-02-17","符合资质标准",null,"否","存在职业资格“挂证”现象"]
[null,null,"专业承包 建筑装修装饰工程 ","贰级","2015-11-30","符合资质标准",null,"否","存在职业资格“挂证”现象"]
[36,"苏州市东升铝合金制品有限公司","专业承包 建筑幕墙工程 \n","壹级","2017-01-20","符合资质标准",null,"否"]
[null,null,"专业承包 钢结构工程 ","叁级","2017-08-28","符合资质标准",null,"否"]
[37,"苏州市新元门窗有限公司","专业承包 建筑幕墙工程 ","贰级","2015-11-30","符合资质标准",null,"否"]
[null,null,"建筑装修装饰工程","贰级","2017-02-17","符合资质标准",null,"否"]
[38,"苏州朗意景观照明工程有限公司","城市及道路照明工程专业承包   ","贰级","2015-12-14","符合资质标准",null,"否"]
[null,null,"电子与智能化工程专业承包","贰级","2015-12-14","符合资质标准",null,"否"]
[39,"苏州华晴安装工程有限公司","   机电设备安装叁级","叁级","2016-01-13","符合资质标准",null,"否"]
[null,null,"城市及道路照明工程\n","壹级\n","\n2020-06-04","符合资质标准",null,"否","升级"]
[null,null,"输变电工程\n","叁级","\n2015-12-14","符合资质标准",null,"否"]
[40,"苏州品拓照明工程有限公司","城市及道路照明工程专业承包 ","叁级","2018-08-17","符合资质标准",null,"否"]
[41,"苏州老匠皇装饰设计工程有限公司","专业承包 建筑装修装饰工程"," 贰级","2019-08-23","符合资质标准",null,"否","换证"]
[42,"苏州新画面设计营造有限公司","专业承包 建筑装修装饰工程 ","贰级 ","2018-09-30","符合资质标准",null,"否","存在职业资格“挂证”现象"]
["43","江苏垚烨建筑工程有限公司","防水防腐工程专业承包 ","贰级","2019-05-22","建造师数量不足","整改中",null,"分立重组"]
[null,null,"建筑装修装饰工程","贰级","2020-06-11",{"$nulls":3},"分立重组"]
[null,null,"施工劳务","不分等级","2019-08-22",{"$nulls":3},"分立重组"]
[44,"苏州迪诺环保科技有限公司","   专业承包 环保工程 ","叁级","2018-09-25","所有人员数量严重不足，净资产未填报，动态核查不合格","整改中"]
[45,"科赛尔实验设备（苏州）有限公司","建筑机电安装工程专业承包 ","叁级"," \n2019-10-08","人员数量严重不足","整改中",null,"首次申领"]
["46","江苏赛宁建筑工程有限公司","机电工程施工总承包 ","叁级","2018-09-25","建造师投诉","整改中",null,"有投诉"]
["47","苏州景叶阁环境工程有限公司","建筑装修装饰工程专业承包 ","贰级","2015-12-30","所有人员数量严重不足，净资产未填报，动态核查不合格","整改中"]
["48","苏州嵩笛建筑工程有限公司","建筑工程施工总承包 ","叁级"," \n2018-06-04","所有人员数量严重不足，净资产未填报，动态核查不合格","整改中"]
[49,"苏州屹峰建筑装饰工程有限公司","建筑装修装饰工程专业承包 ","贰级","2020-04-11","技工有投诉","整改中",null,"首次申请"]
[50,"苏州永春劳务服务有限公司","模板脚手架专业承包 ","不分等级","2016-06-29",null,"整改中"]
[1,"江苏辰高建设工程有限公司","建筑工程","叁级","2017-01-04","净资产、建造师不达标","不达标","是",null,"核查企业31家，涉及资质32项；\n不达标企业31家，涉及资质32项；\n拟撤回资质企业31家，涉及资质32项。","昆山"]
[2,"昆山东新建筑实业有限公司","建筑工程","叁级","2016-06-28","净资产、建造师不达标","不达标","是"]
[3,"昆山会达电器设备有限公司","建筑机电安装工程","叁级","2016-03-02","净资产、建造师不达标","不达标","是"]
[4,"昆山建兴建设工程有限公司","地基基础工程","叁级","2016-06-21","净资产、建造师不达标","不达标","是"]
[5,"昆山建兴建设工程有限公司","建筑机电安装工程","叁级","2016-06-21","净资产、建造师不达标","不达标","是"]
[6,"昆山聚亨机电有限公司","建筑机电安装工程","叁级","2015-12-14","净资产、建造师不达标","不达标","是"]
[7,"昆山立达建设工程有限公司","建筑工程","叁级","2016-01-04","净资产、建造师不达标","不达标","是"]
[8,"昆山若泰建筑装饰工程有限公司","建筑装修装饰工程","贰级","2015-12-07","净资产不达标","不达标","是"]
[9,"昆山盛百佳机电设备有限公司","建筑机电安装工程","叁级","2016-05-05","净资产、建造师不达标","不达标","是"]
[10,"昆山市城市生态森林公园有限公司","古建筑工程","叁级","2015-12-14","净资产、建造师不达标","不达标","是"]
[11,"昆山市城乡建设有限公司","建筑机电安装工程","叁级","2015-12-14","建造师不达标","不达标","是"]
[12,"昆山市海汇设备安装工程有限公司","石油化工工程","叁级","2018-07-12","净资产、建造师不达标","不达标","是"]
[13,"昆山市建华建设工程配套有限公司","建筑工程","叁级","2018-02-08","净资产、建造师不达标","不达标","是"]
[14,"昆山市蓝天防水防腐工程有限公司","防水防腐保温工程","贰级","2016-05-04","净资产、建造师不达标","不达标","是"]
[15,"昆山市乐通安装工程有限公司","建筑机电安装工程","叁级","2016-05-05","净资产、建造师不达标","不达标","是"]
[16,"昆山市千溪建筑安装有限公司","建筑工程","叁级","2016-03-04","净资产、建造师不达标","不达标","是"]
[17,"昆山市台昆置业有限公司","建筑工程","叁级","2016-03-04","净资产、建造师不达标","不达标","是"]
[18,"昆山市银发土石方工程有限公司","环保工程","叁级","2016-06-21","净资产、建造师不达标","不达标","是"]
[19,"昆山市永树建设配套服务有限公司","模板脚手架","不分等级","2016-03-04","净资产不达标","不达标","是"]
[20,"昆山市宇诚机电安装有限公司","建筑机电安装工程","叁级","2016-06-21","净资产、建造师不达标","不达标","是"]
[21,"昆山纬华电子科技有限公司","建筑机电安装工程","叁级","2017-04-10","净资产、建造师不达标","不达标","是"]
[22,"昆山泽宪机电工程有限公司","建筑机电安装工程","叁级","2015-12-14","净资产、建造师不达标","不达标","是"]
[23,"昆山中南建设配套有限公司","模板脚手架","不分等级","2016-03-04","净资产不达标","不达标","是"]
[24,"昆山中原建设配套服务有限公司","模板脚手架","不分等级","2016-03-04","净资产不达标","不达标","是"]
[25,"苏州翰德建材有限责任公司","建筑装修装饰工程","贰级","2019-07-05","净资产、建造师不达标","不达标","是"]
[26,"苏州恒达钢结构有限公司","钢结构工程","叁级","2016-04-05","净资产、建造师不达标","不达标","是"]
[27,"苏州两岸机电工程有限公司","建筑机电安装工程","叁级","2016-06-21","净资产、建造师不达标","不达标","是"]
[28,"苏州市天一实业有限公司","建筑机电安装工程","叁级","2016-05-05","净资产、建造师不达标","不达标","是"]
[29,"苏州威名达机械设备制造有限公司","建筑机电安装工程","叁级","2016-06-21","净资产、建造师不达标","不达标","是"]
[30,"苏州中拓钢结构工程有限公司","钢结构工程","叁级","2015-12-14","净资产、建造师不达标","不达标","是"]
[31,"展熠（苏州）工程技术有限公司","建筑装修装饰工程","贰级","2019-04-29","净资产、建造师不达标","不达标","是"]
[32,"昆山安华混凝土有限公司","预拌混凝土","不分等级","2016-03-04","净资产","不达标","是"]

{"sheet":"Sheet3","index":1,"n_rows":230,"n_cols":3,"rows_kept":230,"hidden":true}
["苏州启迪盛银装饰科技有限公司",{"$f":"VLOOKUP(A1,#REF!,2,)","v":{"$error":"#REF!"}},1]
["苏州基业生态园林股份有限公司",{"$f":"VLOOKUP(A2,#REF!,2,)","v":{"$error":"#REF!"}},2]
["苏州大业建筑工程有限公司",{"$f":"VLOOKUP(A3,#REF!,2,)","v":{"$error":"#REF!"}},3]
["苏州鑫峰兴市政建设工程有限公司",{"$f":"VLOOKUP(A4,#REF!,2,)","v":{"$error":"#REF!"}},4]
["苏州久恒建筑结构加固有限公司",{"$f":"VLOOKUP(A5,#REF!,2,)","v":{"$error":"#REF!"}},5]
["苏州绿象征建设工程有限公司",{"$f":"VLOOKUP(A6,#REF!,2,)","v":{"$error":"#REF!"}},6]
["苏州佑铨环保工程有限公司",{"$f":"VLOOKUP(A7,#REF!,2,)","v":{"$error":"#REF!"}},7]
["苏州镓诺华太环境建设有限公司",{"$f":"VLOOKUP(A8,#REF!,2,)","v":{"$error":"#REF!"}},8]
["江苏美杰欣建设发展有限公司",{"$f":"VLOOKUP(A9,#REF!,2,)","v":{"$error":"#REF!"}},9]
["江苏东投建设发展有限公司",{"$f":"VLOOKUP(A10,#REF!,2,)","v":{"$error":"#REF!"}},10]
["苏州科博思流体科技有限公司",{"$f":"VLOOKUP(A11,#REF!,2,)","v":{"$error":"#REF!"}},11]
["苏州市碧海永乐净化科技有限公司",{"$f":"VLOOKUP(A12,#REF!,2,)","v":{"$error":"#REF!"}},12]
["江苏仁诚建设工程有限公司",{"$f":"VLOOKUP(A13,#REF!,2,)","v":{"$error":"#REF!"}},13]
["太仓市缘和装潢设计工程有限公司",{"$f":"VLOOKUP(A14,#REF!,2,)","v":{"$error":"#REF!"}},14]
["苏州颐德装饰工程有限公司",{"$f":"VLOOKUP(A15,#REF!,2,)","v":{"$error":"#REF!"}},15]
["太仓市黑马建设发展有限公司",{"$f":"VLOOKUP(A16,#REF!,2,)","v":{"$error":"#REF!"}},16]
["苏州升耀建筑装饰有限公司",{"$f":"VLOOKUP(A17,#REF!,2,)","v":{"$error":"#REF!"}},17]
["太仓市爱能吉电力工程有限公司",{"$f":"VLOOKUP(A18,#REF!,2,)","v":{"$error":"#REF!"}},18]
["江苏沁福建筑工程有限公司",{"$f":"VLOOKUP(A19,#REF!,2,)","v":{"$error":"#REF!"}},19]
["江苏晋仓建筑工程有限公司",{"$f":"VLOOKUP(A20,#REF!,2,)","v":{"$error":"#REF!"}},20]
["江苏中为润泰建设有限公司",{"$f":"VLOOKUP(A21,#REF!,2,)","v":{"$error":"#REF!"}},21]
["东方雨虹建设工程有限公司",{"$f":"VLOOKUP(A22,#REF!,2,)","v":{"$error":"#REF!"}},22]
["苏州亚厦建设工程有限公司",{"$f":"VLOOKUP(A23,#REF!,2,)","v":{"$error":"#REF!"}},23]
["江苏铭瑞浩工程科技有限公司",{"$f":"VLOOKUP(A24,#REF!,2,)","v":{"$error":"#REF!"}},24]
["江苏金厦建设集团有限公司",{"$f":"VLOOKUP(A25,#REF!,2,)","v":{"$error":"#REF!"}},25]
[" 江苏兴安建设集团有限公司",{"$f":"VLOOKUP(A26,#REF!,2,)","v":{"$error":"#REF!"}},26]
["张家港市盛洲基础工程有限公司",{"$f":"VLOOKUP(A27,#REF!,2,)","v":{"$error":"#REF!"}},27]
["江苏励腾建设工程有限公司",{"$f":"VLOOKUP(A28,#REF!,2,)","v":{"$error":"#REF!"}},28]
["江苏鲁班建设集团有限公司",{"$f":"VLOOKUP(A29,#REF!,2,)","v":{"$error":"#REF!"}},29]
["张家港市锦明环保工程装备有限公司",{"$f":"VLOOKUP(A30,#REF!,2,)","v":{"$error":"#REF!"}},30]
["张家港市西张建筑工程有限公司",{"$f":"VLOOKUP(A31,#REF!,2,)","v":{"$error":"#REF!"}},31]
["江苏捷兴机电设备安装工程有限公司",{"$f":"VLOOKUP(A32,#REF!,2,)","v":{"$error":"#REF!"}},32]
["张家港市科伟建筑有限公司",{"$f":"VLOOKUP(A33,#REF!,2,)","v":{"$error":"#REF!"}},33]
["江苏鑫佳城建设发展有限公司",{"$f":"VLOOKUP(A34,#REF!,2,)","v":{"$error":"#REF!"}},34]
["江苏顺水源工业设备安装有限公司",{"$f":"VLOOKUP(A35,#REF!,2,)","v":{"$error":"#REF!"}},35]
["江苏联峰工业装备科技有限公司",{"$f":"VLOOKUP(A36,#REF!,2,)","v":{"$error":"#REF!"}},36]
["江苏凯沙电气有限公司",{"$f":"VLOOKUP(A37,#REF!,2,)","v":{"$error":"#REF!"}},37]
["苏州如港建设工程有限公司",{"$f":"VLOOKUP(A38,#REF!,2,)","v":{"$error":"#REF!"}},38]
["江苏兆建建设工程有限公司",{"$f":"VLOOKUP(A39,#REF!,2,)","v":{"$error":"#REF!"}},39]
["张家港市建筑设计研究院有限责任公司",{"$f":"VLOOKUP(A40,#REF!,2,)","v":{"$error":"#REF!"}},40]
["苏州通港建筑工程有限公司",{"$f":"VLOOKUP(A41,#REF!,2,)","v":{"$error":"#REF!"}},41]
["江苏江厦建筑安装工程有限公司",{"$f":"VLOOKUP(A42,#REF!,2,)","v":{"$error":"#REF!"}},42]
["江苏国安消防科技有限公司",{"$f":"VLOOKUP(A43,#REF!,2,)","v":{"$error":"#REF!"}},43]
["江苏扬鼎装饰工程有限公司",{"$f":"VLOOKUP(A44,#REF!,2,)","v":{"$error":"#REF!"}},44]
["张家港市中海电气成套有限公司",{"$f":"VLOOKUP(A45,#REF!,2,)","v":{"$error":"#REF!"}},45]
["江苏旭龙环境科技有限公司",{"$f":"VLOOKUP(A46,#REF!,2,)","v":{"$error":"#REF!"}},46]
["张家港市兴港混凝土有限公司",{"$f":"VLOOKUP(A47,#REF!,2,)","v":{"$error":"#REF!"}},47]
["张家港市伟泰混凝土有限公司",{"$f":"VLOOKUP(A48,#REF!,2,)","v":{"$error":"#REF!"}},48]
["张家港市垲锐保温材料有限公司",{"$f":"VLOOKUP(A49,#REF!,2,)","v":{"$error":"#REF!"}},49]
["江苏冰河建筑装饰工程有限公司",{"$f":"VLOOKUP(A50,#REF!,2,)","v":{"$error":"#REF!"}},50]
["张家港市泓泰工业设备制造有限公司",{"$f":"VLOOKUP(A51,#REF!,2,)","v":{"$error":"#REF!"}},51]
["张家港市厚上建设有限公司",{"$f":"VLOOKUP(A52,#REF!,2,)","v":{"$error":"#REF!"}},52]
[null,null,53]
["张家港双建保温防水工程有限公司",{"$f":"VLOOKUP(A54,#REF!,2,)","v":{"$error":"#REF!"}},54]
["张家港博赛建筑装饰有限公司",{"$f":"VLOOKUP(A55,#REF!,2,)","v":{"$error":"#REF!"}},55]
["苏州力一环境科技有限公司",{"$f":"VLOOKUP(A56,#REF!,2,)","v":{"$error":"#REF!"}},56]
["苏州兆达加固工程有限公司",{"$f":"VLOOKUP(A57,#REF!,2,)","v":{"$error":"#REF!"}},57]
["张家港市盛华幕墙工程有限公司",{"$f":"VLOOKUP(A58,#REF!,2,)","v":{"$error":"#REF!"}},58]
["张家港市荣华工业设备安装有限公司",{"$f":"VLOOKUP(A59,#REF!,2,)","v":{"$error":"#REF!"}},59]
["张家港市昌盛装饰工程有限公司",{"$f":"VLOOKUP(A60,#REF!,2,)","v":{"$error":"#REF!"}},60]
["张家港市亚宏钢结构工程有限公司",{"$f":"VLOOKUP(A61,#REF!,2,)","v":{"$error":"#REF!"}},61]
["张家港平乔建筑机械安装有限公司",{"$f":"VLOOKUP(A62,#REF!,2,)","v":{"$error":"#REF!"}},62]
["张家港市隆鑫金属制品有限公司",{"$f":"VLOOKUP(A63,#REF!,2,)","v":{"$error":"#REF!"}},63]
[" 江苏顺水源工业设备安装有限公司",{"$f":"VLOOKUP(A64,#REF!,2,)","v":{"$error":"#REF!"}},64]
["张家港市顺中建筑安装工程有限公司",{"$f":"VLOOKUP(A65,#REF!,2,)","v":{"$error":"#REF!"}},65]
["苏州枫昊环境科技有限公司",{"$f":"VLOOKUP(A66,#REF!,2,)","v":{"$error":"#REF!"}},66]
["苏州沃磁工业设备安装有限公司",{"$f":"VLOOKUP(A67,#REF!,2,)","v":{"$error":"#REF!"}},67]
["张家港市伟业机械制造有限公司",{"$f":"VLOOKUP(A68,#REF!,2,)","v":{"$error":"#REF!"}},68]
["江苏大世界建设有限公司",{"$f":"VLOOKUP(A69,#REF!,2,)","v":{"$error":"#REF!"}},69]
["江苏融源设备安装有限公司",{"$f":"VLOOKUP(A70,#REF!,2,)","v":{"$error":"#REF!"}},70]
["江苏绿亿医疗科技有限公司",{"$f":"VLOOKUP(A71,#REF!,2,)","v":{"$error":"#REF!"}},71]
["张家港市德诚鑫建设工程有限公司",{"$f":"VLOOKUP(A72,#REF!,2,)","v":{"$error":"#REF!"}},72]
["苏州恒耐建筑装饰工程有限公司",{"$f":"VLOOKUP(A73,#REF!,2,)","v":{"$error":"#REF!"}},73]
["张家港市利都清洗防水工程有限公司",{"$f":"VLOOKUP(A74,#REF!,2,)","v":{"$error":"#REF!"}},74]
["苏州堡诺装饰设计有限公司",{"$f":"VLOOKUP(A75,#REF!,2,)","v":{"$error":"#REF!"}},75]
["江苏荣厦建设工程有限公司",{"$f":"VLOOKUP(A76,#REF!,2,)","v":{"$error":"#REF!"}},76]
["江苏铜釜建设工程有限公司",{"$f":"VLOOKUP(A77,#REF!,2,)","v":{"$error":"#REF!"}},77]
["苏州前迅机电科技有限公司",{"$f":"VLOOKUP(A78,#REF!,2,)","v":{"$error":"#REF!"}},78]
["苏州市太平洋智能化工程有限公司",{"$f":"VLOOKUP(A79,#REF!,2,)","v":{"$error":"#REF!"}},79]
["苏州首创科技发展有限公司",{"$f":"VLOOKUP(A80,#REF!,2,)","v":{"$error":"#REF!"}},80]
["苏州鑫强装饰工程有限公司",{"$f":"VLOOKUP(A81,#REF!,2,)","v":{"$error":"#REF!"}},81]
["张家港国华新能源有限公司",{"$f":"VLOOKUP(A82,#REF!,2,)","v":{"$error":"#REF!"}},82]
["张家港和庆机械设备租赁有限公司",{"$f":"VLOOKUP(A83,#REF!,2,)","v":{"$error":"#REF!"}},83]
["张家港满堂红装饰工程有限公司",{"$f":"VLOOKUP(A84,#REF!,2,)","v":{"$error":"#REF!"}},84]
["张家港市典石装饰工程有限公司",{"$f":"VLOOKUP(A85,#REF!,2,)","v":{"$error":"#REF!"}},85]
["张家港市东润智能电气有限公司",{"$f":"VLOOKUP(A86,#REF!,2,)","v":{"$error":"#REF!"}},86]
["张家港市恒泰建筑工程有限公司",{"$f":"VLOOKUP(A87,#REF!,2,)","v":{"$error":"#REF!"}},87]
["张家港鑫灶林建筑装饰有限公司",{"$f":"VLOOKUP(A88,#REF!,2,)","v":{"$error":"#REF!"}},88]
["江苏金烁工程总承包有限公司",{"$f":"VLOOKUP(A89,#REF!,2,)","v":{"$error":"#REF!"}},89]
["江苏赛富隆重工有限公司",{"$f":"VLOOKUP(A90,#REF!,2,)","v":{"$error":"#REF!"}},90]
["江苏盛港建设安装工程有限公司",{"$f":"VLOOKUP(A91,#REF!,2,)","v":{"$error":"#REF!"}},91]
["江苏新中环保股份有限公司",{"$f":"VLOOKUP(A92,#REF!,2,)","v":{"$error":"#REF!"}},92]
["张家港市永康建筑工程有限公司",{"$f":"VLOOKUP(A93,#REF!,2,)","v":{"$error":"#REF!"}},93]
["苏州市舍利彩钢复新工程有限公司",{"$f":"VLOOKUP(A94,#REF!,2,)","v":{"$error":"#REF!"}},94]
["江苏虞丰装饰工程有限公司",{"$f":"VLOOKUP(A95,#REF!,2,)","v":{"$error":"#REF!"}},95]
["江苏大宇空调设备有限公司",{"$f":"VLOOKUP(A96,#REF!,2,)","v":{"$error":"#REF!"}},96]
["苏州市禾众盛成套机电设备有限公司",{"$f":"VLOOKUP(A97,#REF!,2,)","v":{"$error":"#REF!"}},97]
["江苏中宸建筑装饰工程有限公司",{"$f":"VLOOKUP(A98,#REF!,2,)","v":{"$error":"#REF!"}},98]
["江苏雁锦建设工程有限公司",{"$f":"VLOOKUP(A99,#REF!,2,)","v":{"$error":"#REF!"}},99]
["江苏中凯建设工程有限公司",{"$f":"VLOOKUP(A100,#REF!,2,)","v":{"$error":"#REF!"}},100]
["常熟市宏瑞建筑工程有限公司",{"$f":"VLOOKUP(A101,#REF!,2,)","v":{"$error":"#REF!"}},101]
["江苏永申景观建设有限公司",{"$f":"VLOOKUP(A102,#REF!,2,)","v":{"$error":"#REF!"}},102]
["苏州永立通建设有限公司",{"$f":"VLOOKUP(A103,#REF!,2,)","v":{"$error":"#REF!"}},103]
["江苏永通市政园林建设有限公司",{"$f":"VLOOKUP(A104,#REF!,2,)","v":{"$error":"#REF!"}},104]
["常熟市金龙装饰有限责任公司",{"$f":"VLOOKUP(A105,#REF!,2,)","v":{"$error":"#REF!"}},105]
["江苏金土木建设集团华宇工程有限公司",{"$f":"VLOOKUP(A106,#REF!,2,)","v":{"$error":"#REF!"}},106]
["苏州天筑景观工程有限公司",{"$f":"VLOOKUP(A107,#REF!,2,)","v":{"$error":"#REF!"}},107]
["江苏浚笠建设有限公司",{"$f":"VLOOKUP(A108,#REF!,2,)","v":{"$error":"#REF!"}},108]
["苏州市中天设备安装工程有限公司",{"$f":"VLOOKUP(A109,#REF!,2,)","v":{"$error":"#REF!"}},109]
["苏州朗捷通智能科技有限公司",{"$f":"VLOOKUP(A110,#REF!,2,)","v":{"$error":"#REF!"}},110]
["苏州新创空调净化设备有限责任公司",{"$f":"VLOOKUP(A111,#REF!,2,)","v":{"$error":"#REF!"}},111]
["苏州中路工程有限公司",{"$f":"VLOOKUP(A112,#REF!,2,)","v":{"$error":"#REF!"}},112]
["苏州绿化建设发展有限公司",{"$f":"VLOOKUP(A113,#REF!,2,)","v":{"$error":"#REF!"}},113]
["江苏盛世华为工程技术有限公司",{"$f":"VLOOKUP(A114,#REF!,2,)","v":{"$error":"#REF!"}},114]
["苏州令通和建筑工程有限公司",{"$f":"VLOOKUP(A115,#REF!,2,)","v":{"$error":"#REF!"}},115]
["苏州曼凯系统集成科技有限公司",{"$f":"VLOOKUP(A116,#REF!,2,)","v":{"$error":"#REF!"}},116]
["苏州金昕达建筑工程有限公司",{"$f":"VLOOKUP(A117,#REF!,2,)","v":{"$error":"#REF!"}},117]
["苏州高新区兴旺土石方有限公司",{"$f":"VLOOKUP(A118,#REF!,2,)","v":{"$error":"#REF!"}},118]
["苏州帝宸建设有限公司",{"$f":"VLOOKUP(A119,#REF!,2,)","v":{"$error":"#REF!"}},119]
["苏州环创建材科技有限公司",{"$f":"VLOOKUP(A120,#REF!,2,)","v":{"$error":"#REF!"}},120]
["苏州繁硕集成系统工程有限公司",{"$f":"VLOOKUP(A121,#REF!,2,)","v":{"$error":"#REF!"}},121]
["苏州本源环保科技有限公司",{"$f":"VLOOKUP(A122,#REF!,2,)","v":{"$error":"#REF!"}},122]
["苏州沃顺建筑机械设备有限公司",{"$f":"VLOOKUP(A123,#REF!,2,)","v":{"$error":"#REF!"}},123]
["苏州新城园林发展有限公司",{"$f":"VLOOKUP(A124,#REF!,2,)","v":{"$error":"#REF!"}},124]
["苏州茂德机电工程有限公司",{"$f":"VLOOKUP(A125,#REF!,2,)","v":{"$error":"#REF!"}},125]
["苏州市立强电力设备工程有限公司",{"$f":"VLOOKUP(A126,#REF!,2,)","v":{"$error":"#REF!"}},126]
["苏州品正智能工程有限公司",{"$f":"VLOOKUP(A127,#REF!,2,)","v":{"$error":"#REF!"}},127]
["苏州锐创装饰工程有限公司",{"$f":"VLOOKUP(A128,#REF!,2,)","v":{"$error":"#REF!"}},128]
["苏州信颐系统集成有限公司",{"$f":"VLOOKUP(A129,#REF!,2,)","v":{"$error":"#REF!"}},129]
["张家港保税区华瑞工程有限公司",{"$f":"VLOOKUP(A130,#REF!,2,)","v":{"$error":"#REF!"}},130]
["张家港保税区伟鑫建设工程有限公司",{"$f":"VLOOKUP(A131,#REF!,2,)","v":{"$error":"#REF!"}},131]
["苏州港张家港保税区工程有限公司",{"$f":"VLOOKUP(A132,#REF!,2,)","v":{"$error":"#REF!"}},132]
["江苏德丰建设集团有限公司",{"$f":"VLOOKUP(A133,#REF!,2,)","v":{"$error":"#REF!"}},133]
["江苏双山建筑工程有限公司",{"$f":"VLOOKUP(A134,#REF!,2,)","v":{"$error":"#REF!"}},134]
["江苏黑石头工程有限公司",{"$f":"VLOOKUP(A135,#REF!,2,)","v":{"$error":"#REF!"}},135]
["江苏宇和工业设备安装有限公司",{"$f":"VLOOKUP(A136,#REF!,2,)","v":{"$error":"#REF!"}},136]
["江苏晨阳恒佳建设工程有限公司",{"$f":"VLOOKUP(A137,#REF!,2,)","v":{"$error":"#REF!"}},137]
["江苏金鑫华建设工程有限公司",{"$f":"VLOOKUP(A138,#REF!,2,)","v":{"$error":"#REF!"}},138]
["张家港保税区泓晟安装工程有限公司",{"$f":"VLOOKUP(A139,#REF!,2,)","v":{"$error":"#REF!"}},139]
["张家港中集圣达因低温装备有限公司",{"$f":"VLOOKUP(A140,#REF!,2,)","v":{"$error":"#REF!"}},140]
["江苏十晟建筑工程有限公司",{"$f":"VLOOKUP(A141,#REF!,2,)","v":{"$error":"#REF!"}},141]
["张家港保税区徽建劳务有限公司",{"$f":"VLOOKUP(A142,#REF!,2,)","v":{"$error":"#REF!"}},142]
["张家港沃美建设工程有限公司",{"$f":"VLOOKUP(A143,#REF!,2,)","v":{"$error":"#REF!"}},143]
[null,null,144]
["张家港市华孚实业有限公司",{"$f":"VLOOKUP(A145,#REF!,2,)","v":{"$error":"#REF!"}},145]
["智维工程技术（苏州）有限公司",{"$f":"VLOOKUP(A146,#REF!,2,)","v":{"$error":"#REF!"}},146]
["江苏正上宏电力工程有限公司",{"$f":"VLOOKUP(A147,#REF!,2,)","v":{"$error":"#REF!"}},147]
["苏州弛业建设工程有限公司",{"$f":"VLOOKUP(A148,#REF!,2,)","v":{"$error":"#REF!"}},148]
["江苏铭祥瑞建筑安装工程有限公司",{"$f":"VLOOKUP(A149,#REF!,2,)","v":{"$error":"#REF!"}},149]
["苏州市东桥建筑有限公司 ",{"$f":"VLOOKUP(A150,#REF!,2,)","v":{"$error":"#REF!"}},150]
["江苏昱荣建筑工程有限公司 ",{"$f":"VLOOKUP(A151,#REF!,2,)","v":{"$error":"#REF!"}},151]
["苏州市柳氏建筑安装工程有限公司",{"$f":"VLOOKUP(A152,#REF!,2,)","v":{"$error":"#REF!"}},152]
["苏州朗盛建设发展有限公司 ",{"$f":"VLOOKUP(A153,#REF!,2,)","v":{"$error":"#REF!"}},153]
["苏州超博建设工程有限公司",{"$f":"VLOOKUP(A154,#REF!,2,)","v":{"$error":"#REF!"}},154]
["江苏守望建设工程有限公司",{"$f":"VLOOKUP(A155,#REF!,2,)","v":{"$error":"#REF!"}},155]
["苏州三佳交通工程有限公司 ",{"$f":"VLOOKUP(A156,#REF!,2,)","v":{"$error":"#REF!"}},156]
["江苏栋思尧电力科技有限公司",{"$f":"VLOOKUP(A157,#REF!,2,)","v":{"$error":"#REF!"}},157]
["苏州市天地工业设备安装有限公司",{"$f":"VLOOKUP(A158,#REF!,2,)","v":{"$error":"#REF!"}},158]
["苏州晟昊蓝建设工程有限公司",{"$f":"VLOOKUP(A159,#REF!,2,)","v":{"$error":"#REF!"}},159]
["苏州市相城区通标交通工程维运有限公司",{"$f":"VLOOKUP(A160,#REF!,2,)","v":{"$error":"#REF!"}},160]
["苏州蓝梦路桥建设有限公司",{"$f":"VLOOKUP(A161,#REF!,2,)","v":{"$error":"#REF!"}},161]
["江苏新尚机电工程有限公司",{"$f":"VLOOKUP(A162,#REF!,2,)","v":{"$error":"#REF!"}},162]
["苏州瑞能岩土工程有限公司",{"$f":"VLOOKUP(A163,#REF!,2,)","v":{"$error":"#REF!"}},163]
["苏州和宏基础工程有限公司",{"$f":"VLOOKUP(A164,#REF!,2,)","v":{"$error":"#REF!"}},164]
["苏州环城地基基础工程有限公司",{"$f":"VLOOKUP(A165,#REF!,2,)","v":{"$error":"#REF!"}},165]
["苏州市鹏月环保工程有限公司 ",{"$f":"VLOOKUP(A166,#REF!,2,)","v":{"$error":"#REF!"}},166]
["苏州月辉环保科技有限公司",{"$f":"VLOOKUP(A167,#REF!,2,)","v":{"$error":"#REF!"}},167]
["超冠（苏州）机电设备工程有限公司",{"$f":"VLOOKUP(A168,#REF!,2,)","v":{"$error":"#REF!"}},168]
["苏州市亿兆机电工程技术有限公司 ",{"$f":"VLOOKUP(A169,#REF!,2,)","v":{"$error":"#REF!"}},169]
["苏州华源电气有限公司",{"$f":"VLOOKUP(A170,#REF!,2,)","v":{"$error":"#REF!"}},170]
["苏州锦宇钢结构有限公司 ",{"$f":"VLOOKUP(A171,#REF!,2,)","v":{"$error":"#REF!"}},171]
["苏州基业钢结构有限公司 ",{"$f":"VLOOKUP(A172,#REF!,2,)","v":{"$error":"#REF!"}},172]
["苏州五建钢结构有限公司",{"$f":"VLOOKUP(A173,#REF!,2,)","v":{"$error":"#REF!"}},173]
["苏州锦天钢结构有限公司 ",{"$f":"VLOOKUP(A174,#REF!,2,)","v":{"$error":"#REF!"}},174]
["苏州市新发门窗有限公司",{"$f":"VLOOKUP(A175,#REF!,2,)","v":{"$error":"#REF!"}},175]
["苏州亚冠信息科技有限公司 ",{"$f":"VLOOKUP(A176,#REF!,2,)","v":{"$error":"#REF!"}},176]
["苏州市大龙装饰设计有限公司",{"$f":"VLOOKUP(A177,#REF!,2,)","v":{"$error":"#REF!"}},177]
["苏州艺朗装饰工程有限公司",{"$f":"VLOOKUP(A178,#REF!,2,)","v":{"$error":"#REF!"}},178]
["苏州百联节能科技股份有限公司",{"$f":"VLOOKUP(A179,#REF!,2,)","v":{"$error":"#REF!"}},179]
["苏州顺天建筑安装有限公司 ",{"$f":"VLOOKUP(A180,#REF!,2,)","v":{"$error":"#REF!"}},180]
["江苏苏鑫装饰（集团）公司 ",{"$f":"VLOOKUP(A181,#REF!,2,)","v":{"$error":"#REF!"}},181]
["苏州盈正装饰工程营造有限公司",{"$f":"VLOOKUP(A182,#REF!,2,)","v":{"$error":"#REF!"}},182]
["金螳螂华东建筑装饰有限公司",{"$f":"VLOOKUP(A183,#REF!,2,)","v":{"$error":"#REF!"}},183]
["苏州香武士设计装饰有限公司",{"$f":"VLOOKUP(A184,#REF!,2,)","v":{"$error":"#REF!"}},184]
["苏州市东升铝合金制品有限公司",{"$f":"VLOOKUP(A185,#REF!,2,)","v":{"$error":"#REF!"}},185]
["苏州市新元门窗有限公司",{"$f":"VLOOKUP(A186,#REF!,2,)","v":{"$error":"#REF!"}},186]
["苏州朗意景观照明工程有限公司",{"$f":"VLOOKUP(A187,#REF!,2,)","v":{"$error":"#REF!"}},187]
["苏州华晴安装工程有限公司",{"$f":"VLOOKUP(A188,#REF!,2,)","v":{"$error":"#REF!"}},188]
["苏州品拓照明工程有限公司",{"$f":"VLOOKUP(A189,#REF!,2,)","v":{"$error":"#REF!"}},189]
["苏州老匠皇装饰设计工程有限公司",{"$f":"VLOOKUP(A190,#REF!,2,)","v":{"$error":"#REF!"}},190]
["苏州新画面设计营造有限公司",{"$f":"VLOOKUP(A191,#REF!,2,)","v":{"$error":"#REF!"}},191]
["江苏垚烨建筑工程有限公司",{"$f":"VLOOKUP(A192,#REF!,2,)","v":{"$error":"#REF!"}},192]
["苏州迪诺环保科技有限公司",{"$f":"VLOOKUP(A193,#REF!,2,)","v":{"$error":"#REF!"}},193]
["科赛尔实验设备（苏州）有限公司",{"$f":"VLOOKUP(A194,#REF!,2,)","v":{"$error":"#REF!"}},194]
["江苏赛宁建筑工程有限公司",{"$f":"VLOOKUP(A195,#REF!,2,)","v":{"$error":"#REF!"}},195]
["苏州景叶阁环境工程有限公司",{"$f":"VLOOKUP(A196,#REF!,2,)","v":{"$error":"#REF!"}},196]
["苏州嵩笛建筑工程有限公司",{"$f":"VLOOKUP(A197,#REF!,2,)","v":{"$error":"#REF!"}},197]
["苏州屹峰建筑装饰工程有限公司",{"$f":"VLOOKUP(A198,#REF!,2,)","v":{"$error":"#REF!"}},198]
["苏州永春劳务服务有限公司",{"$f":"VLOOKUP(A199,#REF!,2,)","v":{"$error":"#REF!"}},199]
["江苏辰高建设工程有限公司",{"$f":"VLOOKUP(A200,#REF!,2,)","v":{"$error":"#REF!"}},200]
["昆山东新建筑实业有限公司",{"$f":"VLOOKUP(A201,#REF!,2,)","v":{"$error":"#REF!"}},201]
["昆山会达电器设备有限公司",{"$f":"VLOOKUP(A202,#REF!,2,)","v":{"$error":"#REF!"}},202]
["昆山建兴建设工程有限公司",{"$f":"VLOOKUP(A203,#REF!,2,)","v":{"$error":"#REF!"}},203]
["昆山聚亨机电有限公司",{"$f":"VLOOKUP(A204,#REF!,2,)","v":{"$error":"#REF!"}},204]
["昆山立达建设工程有限公司",{"$f":"VLOOKUP(A205,#REF!,2,)","v":{"$error":"#REF!"}},205]
["昆山若泰建筑装饰工程有限公司",{"$f":"VLOOKUP(A206,#REF!,2,)","v":{"$error":"#REF!"}},206]
["昆山盛百佳机电设备有限公司",{"$f":"VLOOKUP(A207,#REF!,2,)","v":{"$error":"#REF!"}},207]
["昆山市城市生态森林公园有限公司",{"$f":"VLOOKUP(A208,#REF!,2,)","v":{"$error":"#REF!"}},208]
["昆山市城乡建设有限公司",{"$f":"VLOOKUP(A209,#REF!,2,)","v":{"$error":"#REF!"}},209]
["昆山市海汇设备安装工程有限公司",{"$f":"VLOOKUP(A210,#REF!,2,)","v":{"$error":"#REF!"}},210]
["昆山市建华建设工程配套有限公司",{"$f":"VLOOKUP(A211,#REF!,2,)","v":{"$error":"#REF!"}},211]
["昆山市蓝天防水防腐工程有限公司",{"$f":"VLOOKUP(A212,#REF!,2,)","v":{"$error":"#REF!"}},212]
["昆山市乐通安装工程有限公司",{"$f":"VLOOKUP(A213,#REF!,2,)","v":{"$error":"#REF!"}},213]
["昆山市千溪建筑安装有限公司",{"$f":"VLOOKUP(A214,#REF!,2,)","v":{"$error":"#REF!"}},214]
["昆山市台昆置业有限公司",{"$f":"VLOOKUP(A215,#REF!,2,)","v":{"$error":"#REF!"}},215]
["昆山市银发土石方工程有限公司",{"$f":"VLOOKUP(A216,#REF!,2,)","v":{"$error":"#REF!"}},216]
["昆山市永树建设配套服务有限公司",{"$f":"VLOOKUP(A217,#REF!,2,)","v":{"$error":"#REF!"}},217]
["昆山市宇诚机电安装有限公司",{"$f":"VLOOKUP(A218,#REF!,2,)","v":{"$error":"#REF!"}},218]
["昆山纬华电子科技有限公司",{"$f":"VLOOKUP(A219,#REF!,2,)","v":{"$error":"#REF!"}},219]
["昆山泽宪机电工程有限公司",{"$f":"VLOOKUP(A220,#REF!,2,)","v":{"$error":"#REF!"}},220]
["昆山中南建设配套有限公司",{"$f":"VLOOKUP(A221,#REF!,2,)","v":{"$error":"#REF!"}},221]
["昆山中原建设配套服务有限公司",{"$f":"VLOOKUP(A222,#REF!,2,)","v":{"$error":"#REF!"}},222]
["苏州翰德建材有限责任公司",{"$f":"VLOOKUP(A223,#REF!,2,)","v":{"$error":"#REF!"}},223]
["苏州恒达钢结构有限公司",{"$f":"VLOOKUP(A224,#REF!,2,)","v":{"$error":"#REF!"}},224]
["苏州两岸机电工程有限公司",{"$f":"VLOOKUP(A225,#REF!,2,)","v":{"$error":"#REF!"}},225]
["苏州市天一实业有限公司",{"$f":"VLOOKUP(A226,#REF!,2,)","v":{"$error":"#REF!"}},226]
["苏州威名达机械设备制造有限公司",{"$f":"VLOOKUP(A227,#REF!,2,)","v":{"$error":"#REF!"}},227]
["苏州中拓钢结构工程有限公司",{"$f":"VLOOKUP(A228,#REF!,2,)","v":{"$error":"#REF!"}},228]
["展熠（苏州）工程技术有限公司",{"$f":"VLOOKUP(A229,#REF!,2,)","v":{"$error":"#REF!"}}]
["昆山安华混凝土有限公司",{"$f":"VLOOKUP(A230,#REF!,2,)","v":{"$error":"#REF!"}}]

{"sheet":"挂网附件","index":2,"n_rows":226,"n_cols":3,"rows_kept":226,"hidden":true}
["企业名称","核查资质专业","等级"]
["苏州启迪盛银装饰科技有限公司","建筑装修装饰工程专业承包","壹级"]
["苏州启迪盛银装饰科技有限公司","建筑工程施工总承包","叁级"]
["苏州基业生态园林股份有限公司","水利水电工程施工总承包","叁级"]
["苏州基业生态园林股份有限公司","机电工程施工总承包","叁级"]
["苏州大业建筑工程有限公司","市政公用工程施工总承包","叁级"]
["苏州大业建筑工程有限公司","地基基础工程专业承包","叁级"]
["苏州大业建筑工程有限公司","古建筑工程专业承包","叁级"]
["苏州大业建筑工程有限公司","城市及道路照明工程专业承包","叁级"]
["苏州鑫峰兴市政建设工程有限公司","建筑工程施工总承包","叁级"]
["苏州鑫峰兴市政建设工程有限公司","市政公用工程施工总承包","叁级"]
["苏州鑫峰兴市政建设工程有限公司","地基基础工程专业承包","叁级"]
["苏州久恒建筑结构加固有限公司","地基基础工程专业承包","叁级"]
["苏州久恒建筑结构加固有限公司","钢结构工程专业承包","叁级"]
["苏州绿象征建设工程有限公司","建筑工程施工总承包","叁级"]
["苏州绿象征建设工程有限公司","市政公用工程施工总承包","叁级"]
["苏州绿象征建设工程有限公司","钢结构工程专业承包","叁级"]
["苏州绿象征建设工程有限公司","古建筑工程专业承包","叁级"]
["苏州绿象征建设工程有限公司","城市及道路照明工程专业承包","叁级"]
["苏州绿象征建设工程有限公司","环保工程专业承包","叁级"]
["江苏仁诚建设工程有限公司","建筑工程施工总承包","贰级"]
["苏州亚厦建设工程有限公司","施工劳务不分专业","不分等级"]
["张家港市垲锐保温材料有限公司","防水防腐保温工程专业承包","贰级"]
["江苏冰河建筑装饰工程有限公司","建筑幕墙工程专业承包","贰级"]
["江苏冰河建筑装饰工程有限公司","特种工程(结构补强)专业承包","不分等级"]
["江苏冰河建筑装饰工程有限公司","建筑装修装饰工程专业承包","贰级"]
["张家港市泓泰工业设备制造有限公司","建筑机电安装工程专业承包","叁级"]
["张家港市厚上建设有限公司","建筑工程施工总承包","叁级"]
["张家港市厚上建设有限公司","市政公用工程施工总承包","叁级"]
["江苏鲁班建设集团有限公司","电子与智能化工程专业承包","贰级"]
["张家港双建保温防水工程有限公司","防水防腐保温工程专业承包","贰级"]
["张家港博赛建筑装饰有限公司","消防设施工程专业承包","贰级"]
["苏州力一环境科技有限公司","建筑机电安装工程专业承包","叁级"]
["苏州力一环境科技有限公司","环保工程专业承包","叁级"]
["苏州兆达加固工程有限公司","特种工程(结构补强)专业承包","不分等级"]
["张家港市盛华幕墙工程有限公司","建筑幕墙工程专业承包","贰级"]
["张家港市荣华工业设备安装有限公司","地基基础工程专业承包","叁级"]
["张家港市荣华工业设备安装有限公司","城市及道路照明工程专业承包","叁级"]
["张家港市昌盛装饰工程有限公司","建筑装修装饰工程专业承包","贰级"]
["张家港市亚宏钢结构工程有限公司","钢结构工程专业承包","叁级"]
["张家港平乔建筑机械安装有限公司","起重设备安装工程专业承包","叁级"]
["张家港市隆鑫金属制品有限公司","钢结构工程专业承包","叁级"]
[" 江苏顺水源工业设备安装有限公司","建筑工程施工总承包","叁级"]
[" 江苏顺水源工业设备安装有限公司","机电工程施工总承包","叁级"]
["张家港市顺中建筑安装工程有限公司","建筑工程施工总承包","叁级"]
["苏州枫昊环境科技有限公司","环保工程专业承包","叁级"]
["苏州沃磁工业设备安装有限公司","建筑机电安装工程专业承包","叁级"]
["张家港市伟业机械制造有限公司","建筑机电安装工程专业承包","叁级"]
["江苏大世界建设有限公司","建筑工程施工总承包","叁级"]
["江苏融源设备安装有限公司","消防设施工程专业承包","贰级"]
["江苏绿亿医疗科技有限公司","建筑机电安装工程专业承包","叁级"]
["张家港市德诚鑫建设工程有限公司","地基基础工程专业承包","叁级"]
["苏州恒耐建筑装饰工程有限公司","消防设施工程专业承包","贰级"]
["张家港市利都清洗防水工程有限公司","防水防腐保温工程专业承包","贰级"]
["苏州堡诺装饰设计有限公司","建筑装修装饰工程专业承包","贰级"]
["江苏荣厦建设工程有限公司","建筑工程施工总承包","叁级"]
["江苏铜釜建设工程有限公司","建筑工程施工总承包","叁级"]
["苏州前迅机电科技有限公司","电子与智能化工程专业承包","贰级"]
["苏州市太平洋智能化工程有限公司","电子与智能化工程专业承包","贰级"]
["苏州首创科技发展有限公司","电子与智能化工程专业承包","贰级"]
["苏州鑫强装饰工程有限公司","建筑装修装饰工程专业承包","贰级"]
["张家港国华新能源有限公司","建筑机电安装工程专业承包","叁级"]
["张家港和庆机械设备租赁有限公司","起重设备安装工程专业承包","贰级"]
["张家港满堂红装饰工程有限公司","建筑装修装饰工程专业承包","贰级"]
["张家港市典石装饰工程有限公司","建筑装修装饰工程专业承包","贰级"]
["张家港市东润智能电气有限公司","电子与智能化工程专业承包","贰级"]
["张家港市恒泰建筑工程有限公司","建筑工程施工总承包","叁级"]
["张家港鑫灶林建筑装饰有限公司","建筑装修装饰工程专业承包","贰级"]
["江苏金烁工程总承包有限公司","建筑工程施工总承包","叁级"]
["江苏赛富隆重工有限公司","钢结构工程专业承包","贰级"]
["江苏盛港建设安装工程有限公司","石油化工工程施工总承包","叁级"]
["江苏盛港建设安装工程有限公司","城市及道路照明工程专业承包","叁级"]
["江苏新中环保股份有限公司","建筑机电安装工程专业承包","叁级"]
["张家港市永康建筑工程有限公司","模板脚手架专业承包","不分等级"]
["苏州市舍利彩钢复新工程有限公司","防水防腐保温工程专业承包","贰级"]
["江苏虞丰装饰工程有限公司","建筑机电安装工程专业承包","叁级"]
["苏州市禾众盛成套机电设备有限公司","建筑机电安装工程专业承包","叁级"]
["江苏中宸建筑装饰工程有限公司","建筑装修装饰工程专业承包","贰级"]
["江苏雁锦建设工程有限公司","建筑工程施工总承包","叁级"]
["江苏中凯建设工程有限公司","地基基础工程专业承包","叁级"]
["江苏中凯建设工程有限公司","钢结构工程专业承包","叁级"]
["江苏永申景观建设有限公司","隧道工程专业承包","叁级"]
["江苏金土木建设集团华宇工程有限公司","建筑工程施工总承包","叁级"]
["江苏金土木建设集团华宇工程有限公司","地基基础工程专业承包","叁级"]
["苏州天筑景观工程有限公司","古建筑工程专业承包","二级"]
["江苏浚笠建设有限公司","水利水电工程施工总承包","三级"]
["苏州市中天设备安装工程有限公司","环保工程专业承包","三级"]
["苏州中路工程有限公司","电力工程施工总承包","三级"]
["苏州令通和建筑工程有限公司","防水防腐保温工程专业承包","二级"]
["苏州曼凯系统集成科技有限公司","电子与智能化工程专业承包","二级"]
["苏州金昕达建筑工程有限公司","市政公用工程施工总承包","三级"]
["苏州高新区兴旺土石方有限公司","市政公用工程施工总承包","三级"]
["苏州环创建材科技有限公司","防水防腐保温工程专业承包","二级"]
["苏州繁硕集成系统工程有限公司","机电工程施工总承包","三级"]
["苏州本源环保科技有限公司","古建筑工程专业承包","三级"]
["苏州茂德机电工程有限公司","机电工程施工总承包","三级"]
["苏州品正智能工程有限公司","建筑机电安装工程专业承包","三级"]
["苏州锐创装饰工程有限公司","建筑装修装饰工程专业承包","二级"]
["江苏黑石头工程有限公司","建筑幕墙工程专业承包","贰级"]
["江苏黑石头工程有限公司","建筑工程施工总承包","叁级"]
["江苏黑石头工程有限公司","钢结构工程专业承包","叁级"]
["张家港保税区泓晟安装工程有限公司","建筑机电安装工程专业承包","叁级"]
["江苏正上宏电力工程有限公司","电力工程施工总承包","叁级"]
["苏州弛业建设工程有限公司","建筑工程施工总承包","叁级"]
["苏州弛业建设工程有限公司","市政公用工程施工总承包","叁级"]
["江苏垚烨建筑工程有限公司","防水防腐工程专业承包 ","贰级"]
["江苏垚烨建筑工程有限公司","建筑装修装饰工程","贰级"]
["苏州迪诺环保科技有限公司","   专业承包 环保工程 ","叁级"]
["科赛尔实验设备（苏州）有限公司","建筑机电安装工程专业承包 ","叁级"]
["江苏赛宁建筑工程有限公司","机电工程施工总承包 ","叁级"]
["苏州景叶阁环境工程有限公司","建筑装修装饰工程专业承包 ","贰级"]
["苏州嵩笛建筑工程有限公司","建筑工程施工总承包 ","叁级"]
["苏州屹峰建筑装饰工程有限公司","建筑装修装饰工程专业承包 ","贰级"]
["苏州永春劳务服务有限公司","模板脚手架专业承包 ","不分等级"]
["江苏辰高建设工程有限公司","建筑工程","叁级"]
["昆山东新建筑实业有限公司","建筑工程","叁级"]
["昆山会达电器设备有限公司","建筑机电安装工程","叁级"]
["昆山建兴建设工程有限公司","地基基础工程","叁级"]
["昆山建兴建设工程有限公司","建筑机电安装工程","叁级"]
["昆山聚亨机电有限公司","建筑机电安装工程","叁级"]
["昆山立达建设工程有限公司","建筑工程","叁级"]
["昆山若泰建筑装饰工程有限公司","建筑装修装饰工程","贰级"]
["昆山盛百佳机电设备有限公司","建筑机电安装工程","叁级"]
["昆山市城市生态森林公园有限公司","古建筑工程","叁级"]
["昆山市城乡建设有限公司","建筑机电安装工程","叁级"]
["昆山市海汇设备安装工程有限公司","石油化工工程","叁级"]
["昆山市建华建设工程配套有限公司","建筑工程","叁级"]
["昆山市蓝天防水防腐工程有限公司","防水防腐保温工程","贰级"]
["昆山市乐通安装工程有限公司","建筑机电安装工程","叁级"]
["昆山市千溪建筑安装有限公司","建筑工程","叁级"]
["昆山市台昆置业有限公司","建筑工程","叁级"]
["昆山市银发土石方工程有限公司","环保工程","叁级"]
["昆山市永树建设配套服务有限公司","模板脚手架","不分等级"]
["昆山市宇诚机电安装有限公司","建筑机电安装工程","叁级"]
["昆山纬华电子科技有限公司","建筑机电安装工程","叁级"]
["昆山泽宪机电工程有限公司","建筑机电安装工程","叁级"]
["昆山中南建设配套有限公司","模板脚手架","不分等级"]
["昆山中原建设配套服务有限公司","模板脚手架","不分等级"]
["苏州翰德建材有限责任公司","建筑装修装饰工程","贰级"]
["苏州恒达钢结构有限公司","钢结构工程","叁级"]
["苏州两岸机电工程有限公司","建筑机电安装工程","叁级"]
["苏州市天一实业有限公司","建筑机电安装工程","叁级"]
["苏州威名达机械设备制造有限公司","建筑机电安装工程","叁级"]
["苏州中拓钢结构工程有限公司","钢结构工程","叁级"]
["展熠（苏州）工程技术有限公司","建筑装修装饰工程","贰级"]
["昆山安华混凝土有限公司","预拌混凝土","不分等级"]
["苏州筑连文启建筑装饰有限公司","建筑装修装饰工程","贰级"]
["苏州元淳电力安装工程有限公司","电力工程","叁级"]
["江苏勇超基础工程有限公司","地基基础工程","贰级"]
["苏州苏维装饰有限公司","建筑装修装饰工程","贰级"]
["吴江市常青工业设备安装有限公司","建筑机电安装工程","叁级"]
["吴江市华凯建筑安装工程有限公司","不分专业","不分等级"]
["吴江市华凯建筑安装工程有限公司","模板脚手架","不分等级"]
["苏州胜吴建设工程有限公司","建筑工程","叁级"]
["苏州友汇机电工程有限公司","建筑机电安装工程","叁级"]
["苏州三点净化科技有限公司","建筑机电安装工程","贰级"]
["韦斯特洁净环保科技（苏州）有限公司","建筑装修装饰工程","贰级"]
["韦斯特洁净环保科技（苏州）有限公司","建筑机电安装工程","叁级"]
["江苏大峰净化科技有限公司","建筑装修装饰工程","贰级"]
["江苏大峰净化科技有限公司","建筑机电安装工程","叁级"]
["江苏豪鼎建筑安装工程有限公司","建筑机电安装工程","贰级"]
["江苏洪立工程设备有限公司","起重设备安装工程","叁级"]
["江苏莱德力星防水工程有限公司","防水防腐保温工程","贰级"]
["江苏龙成建设工程有限公司","建筑机电安装工程","叁级"]
["江苏天安消防工程有限公司","消防设施工程","壹级"]
["科林环保技术有限责任公司","环保工程","叁级"]
["苏州超净钢结构有限公司","钢结构工程","叁级"]
["苏州超净空调有限公司","建筑机电安装工程","叁级"]
["苏州鼎嘉装饰有限公司","建筑装修装饰工程","贰级"]
["苏州鼎新空调净化设备有限公司","建筑机电安装工程","叁级"]
["苏州东南快科城市增建电梯有限公司","建筑工程","叁级"]
["苏州东南快科城市增建电梯有限公司","钢结构工程","叁级"]
["苏州国景园林建设有限公司","建筑装修装饰工程","贰级"]
["苏州宏翊电气科技有限公司","电力工程","叁级"]
["苏州宏翊电气科技有限公司","消防设施工程","贰级"]
["苏州宏翊电气科技有限公司","输变电工程","叁级"]
["苏州华利晟建设有限公司","建筑工程","叁级"]
["苏州佳信洁净工程有限公司","建筑机电安装工程","叁级"]
["苏州建施建设有限公司","消防设施工程","贰级"]
["苏州建施建设有限公司","建筑机电安装工程","叁级"]
["苏州金诚净化有限公司","建筑机电安装工程","叁级"]
["苏州金泰莱电器有限公司","建筑机电安装工程","叁级"]
["苏州巨联环保有限公司","环保工程","叁级"]
["苏州科博思环保科技有限公司","环保工程","叁级"]
["苏州群光建筑装饰有限公司","建筑装修装饰工程","贰级"]
["苏州市达胜网络工程有限公司","电子与智能化工程","贰级"]
["苏州市利百嘉净化钢构工程有限公司","建筑装修装饰工程","贰级"]
["苏州市庙港建筑有限公司","建筑机电安装工程","叁级"]
["苏州市盛拓装饰工程有限公司","建筑装修装饰工程","贰级"]
["苏州市旭峰净化科技有限公司","建筑装修装饰工程","贰级"]
["苏州市越球建筑防水材料有限公司","防水防腐保温工程","贰级"]
["苏州泰厦装饰工程有限公司","建筑幕墙工程","贰级"]
["苏州伟成机电工程有限公司","城市及道路照明工程","叁级"]
["苏州旭刚建设工程有限公司","消防设施工程","贰级"]
["苏州言信洁净工程有限公司","建筑装修装饰工程","贰级"]
["苏州言信洁净工程有限公司","建筑机电安装工程","叁级"]
["苏州宜特加建筑工程有限公司","建筑装修装饰工程","贰级"]
["苏州玉皇建设有限公司","建筑工程","叁级"]
["苏州振良钢结构有限公司","钢结构工程","叁级"]
["苏州振药净化工程有限公司","建筑机电安装工程","叁级"]
["苏州众悦净化科技有限公司","建筑机电安装工程","叁级"]
["苏州茗泷环境建设发展有限公司","建筑装修装饰工程","贰级"]
["苏州茗泷环境建设发展有限公司","古建筑工程","叁级"]
["苏州泓博环保科技有限公司","环保工程","叁级"]
["吴江南洋彩板钢结构有限公司","钢结构工程","叁级"]
["吴江市东方净化设备有限公司","建筑机电安装工程","叁级"]
["吴江市华强净化设备有限公司","建筑机电安装工程","叁级"]
["吴江市启鼎网络通信工程有限公司","电子与智能化工程","贰级"]
["吴江市深记设备搬运安装有限公司","机电工程","叁级"]
["吴江市水利市政工程有限公司","水利水电工程","叁级"]
["吴江市水利市政工程有限公司","市政公用工程","叁级"]
["吴江市顺通建设工程有限公司","建筑装修装饰工程","贰级"]
["吴江市松陵水利工程队","水利水电工程","叁级"]
["吴江市松陵水利工程队","市政公用工程","叁级"]
["吴江市松陵水利工程队","地基基础工程","叁级"]
["吴江市土石建筑工程公司","水利水电工程","叁级"]
["吴江市协成建筑工程有限公司","建筑工程","叁级"]
["吴江市协成建筑工程有限公司","地基基础工程","叁级"]
["吴江市协成建筑工程有限公司","建筑机电安装工程","叁级"]
["吴江市兴龙劳务有限公司","模板脚手架","不分等级"]
["吴江市永大空调净化有限公司","建筑机电安装工程","叁级"]
["吴江市振新彩板钢架有限公司","钢结构工程","叁级"]
["吴江天龙劳务有限公司","模板脚手架","不分等级"]
["吴江屹立钢构工程有限公司","钢结构工程","叁级"]
["新金城智能装备有限公司","电子与智能化工程","贰级"]
["新金城智能装备有限公司","建筑装修装饰工程","贰级"]

{"sheet":"不达标企业","index":3,"n_rows":16,"n_cols":4,"rows_kept":16,"merged":[[0,0,0,3],[1,0,2,0],[1,1,2,1],[1,2,1,3]]}
["建筑业企业资质核查不合格企业名单（5月11日）"]
["序号","企业名称","核查不达标资质"]
[null,null,"类别","等级"]
[1,"江苏成尚承建设有限公司","模板脚手架专业承包","不分等级"]
[2,"南京仁高建设工程有限公司","模板脚手架专业承包","不分等级"]
[3,"南京博浩脚手架工程有限公司","模板脚手架专业承包","不分等级"]
[4,"江苏铁驰建设发展有限公司","模板脚手架专业承包","不分等级"]
[5,"南京依维建筑安装工程有限公司","模板脚手架专业承包","不分等级"]
[6,"江苏弘邃建设工程有限公司","模板脚手架专业承包","不分等级"]
[7,"南京赛能建设工程有限公司","模板脚手架专业承包","不分等级  "]
[8,"江苏方赫城建设工程有限公司","模板脚手架专业承包","不分等级  "]
[9,"江苏盛宏汇建设工程有限公司","模板脚手架专业承包","不分等级  "]
[10,"南京地球村防腐保温工程有限公司","模板脚手架专业承包","不分等级"]
[11,"南京福彪预拌混凝土有限公司","预拌混凝土专业承包","不分等级"]
[12,"南京巨佑阳建设工程有限公司","专业承包模板脚手架","不分等级"]
[13,"江苏卡博特建设工程有限公司","专业承包模板脚手架","不分等级"]

{"sheet":"Sheet2","index":4,"n_rows":0,"n_cols":0,"rows_kept":0}